Workbook

Sheet Painel (hidden)
V2: 1 | X2: =listas!G2 -> 9
V3: Ano | X3: Mês
V4: 2020 | W4: 1 | X4: Janeiro | Y4: JAN
V5: 2021 | W5: 2 | X5: Fevereiro | Y5: FEV
E6: PAINEL DE CONTROLE DE INDICADORES | H6: =UPPER(VLOOKUP(listas!G2,listas!E3:G14,3,TRUE)& " "&VLOOKUP(listas!C2,listas!A3:B12,2,TRUE)) -> SETEMBRO 2020 | L6: =IF(listas!G2=1,H6,"ACUMULADO "&listas!D2&" JAN / "&VLOOKUP(listas!G2,listas!E3:G14,2,TRUE)&" "&listas!D2) -> ACUMULADO 2020 JAN / SET 2020 | V6: 2022 | W6: 3 | X6: Março | Y6: MAR
V7: 2023 | W7: 4 | X7: Abril | Y7: ABR
E8: Processo | F8: Indicador | H8: Meta | I8: Realizado | J8: Status | L8: Meta | M8: Realizado | N8: Status | V8: 2024 | W8: 5 | X8: Maio | Y8: MAI
V9: 2025 | W9: 6 | X9: Junho | Y9: JUN
E10: INDICADOR COMERCIAL | F10: =Lançamento!B4 -> SATISFAÇÃO DE CLIENTE NPS | H10: =VLOOKUP(X2,Lançamento!B8:G19,3,0) -> 60 | I10: =VLOOKUP(X2,Lançamento!B8:G19,4,0) -> 57 | J10: =IF(I10="","",H10/I10) -> 1.052631579 | L10: =AVERAGEIFS(Lançamento!D8:D19,Lançamento!B8:B19,"<="&X2) -> 60 | M10: =AVERAGEIFS(Lançamento!E8:E19,Lançamento!B8:B19,"<="&X2) -> 34.33333333 | N10: =M10/L10 -> 0.5722222222 | V10: 2026 | W10: 7 | X10: Julho | Y10: JUL
F11: =Lançamento!I4 -> FATURAMENTO MENSAL | H11: =VLOOKUP(X2,Lançamento!I7:N20,3,0) -> 7387825 | I11: =VLOOKUP(X2,Lançamento!I7:N20,4,0) -> 7565275 | J11: =IF(I11="","",H11/I11) -> 0.9765441441 | L11: =AVERAGEIFS(Lançamento!K8:K19,Lançamento!I8:I19,"<="&X2) -> 6824488.889 | M11: =AVERAGEIFS(Lançamento!L8:L19,Lançamento!I8:I19,"<="&X2) -> 6801486.584 | N11: =M11/L11 -> 0.9966294466 | W11: 8 | X11: Agosto | Y11: AGO
E12: =Lançamento!P2 -> INDICADOR DA PRODUÇÃO | F12: =Lançamento!P4 -> EFICIÊNCIA DE MÃO DE OBRA | H12: =VLOOKUP(X2,Lançamento!P8:T19,3,0) -> 0.82 | I12: =VLOOKUP(X2,Lançamento!P8:T19,4,0) -> 0.9193826062 | J12: =IF(H12="","",I12/H12) -> 1.1211983 | L12: =AVERAGEIFS(Lançamento!R8:R19,Lançamento!P8:P19,"<="&X2) -> 0.7822222222 | M12: =AVERAGEIFS(Lançamento!S8:S19,Lançamento!P8:P19,"<="&X2) -> 0.8392483226 | N12: =M12/L12 -> 1.072902685 | V12: 2026 | W12: 7 | X12: Julho | Y12: JUL
F13: =Lançamento!W4 -> REJEIÇÃO INTERNA | H13: =VLOOKUP(X2,Lançamento!W8:AA19,3,0) -> 0.035 | I13: =VLOOKUP(X2,Lançamento!W8:AA19,4) -> 0.0525 | J13: 1.5 | L13: =AVERAGEIFS(Lançamento!Y8:Y19,Lançamento!W8:W19,"<="&X2) -> 0.04222222222 | M13: =AVERAGEIFS(Lançamento!Z8:Z19,Lançamento!W8:W19,"<="&X2) -> 0.04288888889 | N13: =M13/L13 -> 1.015789474 | W13: 8 | X13: Agosto | Y13: AGO
F14: =Lançamento!AD4 -> HORAS DE RETRABALHO | H14: =VLOOKUP(X2,Lançamento!AD8:AH19,3,0) -> 500 | I14: =VLOOKUP(X2,Lançamento!AD8:AH19,4,0) -> 691 | J14: 1.382 | L14: =AVERAGEIFS(Lançamento!AF8:AF19,Lançamento!AD8:AD19,"<="&X2) -> 533.3333333 | M14: =AVERAGEIFS(Lançamento!AG8:AG19,Lançamento!AD8:AD19,"<="&X2) -> 770.6788889 | N14: =M14/L14 -> 1.445022917
E15: =Lançamento!B21 -> INDICADOR DE PROCESSO | F15: =Lançamento!B23 -> OEE SOPRO | H15: =VLOOKUP(X2,Lançamento!B27:F38,3,0) -> 0.504817764 | I15: =VLOOKUP(X2,Lançamento!B27:F38,4,0) -> 0.906 | J15: 1.79470705 | L15: =AVERAGEIFS(Lançamento!E27:E38,Lançamento!B27:B38,"<="&X2) -> 0.9232222222 | M15: =AVERAGEIFS(Lançamento!Y27:Y38,Lançamento!AD8:AD19,"<="&X2) -> 0.6464015718 | N15: =IF(L15="","",M15/L15) -> 0.7001581593
F16: =Lançamento!I23 -> OEE INJEÇÃO | H16: =VLOOKUP(X2,Lançamento!I27:M389,3,0) -> 0.688007352 | I16: =VLOOKUP(X2,Lançamento!I27:M389,4,0) -> 0.978 | J16: 1.421496438 | L16: =AVERAGEIFS(Lançamento!L27:L38,Lançamento!B27:B38,"<="&X2) -> 0.9796666667 | M16: =AVERAGEIFS(Lançamento!L27:L38,Lançamento!AD8:AD19,"<="&X2) -> 0.9796666667 | N16: 1
F17: =Lançamento!P23 -> OEE PET | H17: =VLOOKUP(X2,Lançamento!P27:T38,3,0) -> 0.74 | I17: =VLOOKUP(X2,Lançamento!P27:T38,4,0) -> 0.79561146 | J17: 1.075150622 | L17: =AVERAGEIFS(Lançamento!S27:S38,Lançamento!B27:B38,"<="&X2) -> 0.7468910362 | M17: =AVERAGEIFS(Lançamento!S27:S38,Lançamento!AD8:AD19,"<="&X2) -> 0.7468910362 | N17: 1
F18: =Lançamento!W23 -> OEE DECORAÇÃO | H18: =VLOOKUP(X2,Lançamento!W27:AA38,3,0) -> 0.727846144 | I18: =VLOOKUP(X2,Lançamento!W27:AA38,4,0) -> 0.976 | J18: 1.340942736 | L18: =AVERAGEIFS(Lançamento!Z27:Z38,Lançamento!B27:B38,"<="&X2) -> 0.9721111111 | M18: =AVERAGEIFS(Lançamento!Y27:Y38,Lançamento!AD8:AD19,"<="&X2) -> 0.6464015718 | N18: 0.664946182 | V18: 2026 | W18: 7 | X18: Julho | Y18: JUL
F19: =Lançamento!AD23 -> REFUGO SOPRO | H19: =VLOOKUP(X2,Lançamento!AD27:AH38,3,0) -> 0.06 | I19: =VLOOKUP(X2,Lançamento!AD27:AH38,4,0) -> 0.0941705371 | J19: 1.569508952 | L19: =AVERAGEIFS(Lançamento!AG27:AG38,Lançamento!B27:B38,"<="&X2) -> 0.07507681838 | M19: =AVERAGEIFS(Lançamento!AF27:AF38,Lançamento!AD8:AD19,"<="&X2) -> 0.06355555556 | N19: 0.8465403426 | W19: 8 | X19: Agosto | Y19: AGO
F20: =Lançamento!AK23 -> REFUGO INJEÇÃO | H20: =VLOOKUP(X2,Lançamento!AK27:AO38,3,0) -> 0.023 | I20: =VLOOKUP(X2,Lançamento!AK27:AO38,4,0) -> 0.0217572904 | J20: 0.9459691479 | L20: =AVERAGEIFS(Lançamento!AU27:AU38,Lançamento!B27:B38,"<="&X2) -> 0.02723242952 | M20: =AVERAGEIFS(Lançamento!AM27:AM38,Lançamento!AD8:AD19,"<="&X2) -> 0.02711111111 | N20: 0.995545076
F21: =Lançamento!AR23 -> REFUGO PET | H21: =VLOOKUP(X2,Lançamento!AR27:AV38,3,0) -> 0.025 | I21: =VLOOKUP(X2,Lançamento!AR27:AV38,4,0) -> 0.0300990365 | J21: 1.20396146 | L21: =AVERAGEIFS(Lançamento!AU27:AU38,Lançamento!B27:B38,"<="&X2) -> 0.02723242952 | M21: =AVERAGEIFS(Lançamento!AT27:AT38,Lançamento!AD8:AD19,"<="&X2) -> 0.02655555556 | N21: 0.9751445621
F22: =Lançamento!AY23 -> REFUGO DECORAÇÃO | H22: =VLOOKUP(X2,Lançamento!AY27:BC38,3,0) -> 0.03 | I22: =VLOOKUP(X2,Lançamento!AY27:BC38,4,0) -> 0.02832054625 | J22: 0.9440182085 | L22: =AVERAGEIFS(Lançamento!BB27:BB38,Lançamento!B27:B38,"<="&X2) -> 0.02757999775 | M22: =AVERAGEIFS(Lançamento!BA27:BA38,Lançamento!AD8:AD19,"<="&X2) -> 0.03 | N22: 1.087744831
E23: =Lançamento!AK2 -> INDICADOR DA QUALIDADE | F23: =Lançamento!AK4 -> RNC DE CLIENTE | H23: =VLOOKUP(X2,Lançamento!AK8:AO19,3,0) -> 2 | I23: =VLOOKUP(X2,Lançamento!AK8:AO19,4,0) -> 2 | J23: 1 | L23: =AVERAGEIFS(Lançamento!AN8:AN19,Lançamento!AK8:AK19,"<="&X2) -> 4 | M23: =AVERAGEIFS(Lançamento!AM8:AM19,Lançamento!AD8:AD19,"<="&X2) -> 2.444444444 | N23: 0.6111111111 | V23: 2026 | W23: 7 | X23: Julho | Y23: JUL
F24: =Lançamento!AR4 -> CUSTO NÃO QUALIDADE | H24: =VLOOKUP(X2,Lançamento!AR8:AW20,3,0) -> 0.005 | I24: =VLOOKUP(X2,Lançamento!AR8:AW20,4,0) -> 0.0041 | J24: 0.82 | L24: =AVERAGEIFS(Lançamento!AT8:AT19,Lançamento!AK8:AK19,"<="&X2) -> 0.009444444444 | M24: =AVERAGEIFS(Lançamento!AU8:AU19,Lançamento!AD8:AD19,"<="&X2) -> 0.0119 | N24: 1.26 | W24: 8 | X24: Agosto | Y24: AGO
F25: =Lançamento!AY4 -> CERTIFICAÇÃO ISO 9001 | H25: =VLOOKUP(X2,Lançamento!AY8:BC19,3,0) -> 1 | I25: =VLOOKUP(X2,Lançamento!AY8:BC19,4,0) -> 1 | J25: 1 | L25: =AVERAGEIFS(Lançamento!BB8:BB19,Lançamento!AK8:AK19,"<="&X2) -> 0.9111111111 | M25: =AVERAGEIFS(Lançamento!BA8:BA19,Lançamento!AD8:AD19,"<="&X2) -> 1 | N25: 1.097560976
E26: =Lançamento!B40 -> INDICADOR DO PCP | F26: =Lançamento!B42 -> OTIF | H26: =VLOOKUP(X2,Lançamento!B46:F57,3,0) -> 0.95 | I26: =VLOOKUP(X2,Lançamento!B46:F57,4,0) -> 0.9534246575 | J26: 1.003604903 | L26: =AVERAGEIFS(Lançamento!D46:D57,Lançamento!B46:B57,"<="&X2) -> 0.8044444444 | M26: =AVERAGEIFS(Lançamento!E46:E57,Lançamento!AD8:AD19,"<="&X2) -> 0.7767304662 | N26: 0.965548922 | V26: 2026 | W26: 7 | X26: Julho | Y26: JUL
F27: =Lançamento!I42 -> TAXA DE REPROGRAMAÇÃO | H27: =VLOOKUP(X2,Lançamento!I46:M57,3,0) -> 0.2 | I27: =VLOOKUP(X2,Lançamento!I46:M57,4,0) -> 0.104 | J27: 0.52 | L27: =AVERAGEIFS(Lançamento!K46:K57,Lançamento!B46:B57,"<="&X2) -> 0.2888888889 | M27: =AVERAGEIFS(Lançamento!L46:L57,Lançamento!AD8:AD19,"<="&X2) -> 0.1853333333 | N27: 0.6415384615 | W27: 8 | X27: Agosto | Y27: AGO
E28: =Lançamento!P40 -> INDICADOR DE DESENVOLVIMENTO | F28: =Lançamento!P42 -> PROJETOS ENCERRADOS X CRONOGRAMA | H28: =VLOOKUP(X2,Lançamento!P46:T57,3,0) -> 0.85 | I28: =VLOOKUP(X2,Lançamento!P46:T57,4,0) -> 1 | J28: 1.176470588 | L28: =AVERAGEIFS(Lançamento!R46:R57,Lançamento!AD8:AD19,"<="&X2) -> 0.85 | M28: =AVERAGEIFS(Lançamento!S46:S57,Lançamento!B46:B57,"<="&X2) -> 0.9575757576 | N28: 1.126559715 | V28: 2026 | W28: 7 | X28: Julho | Y28: JUL
F29: =Lançamento!W42 -> EXECUÇÃO DE TESTES | H29: =VLOOKUP(X2,Lançamento!W46:AA57,3,0) -> 0.85 | I29: =VLOOKUP(X2,Lançamento!W46:AA57,4,0) -> 0.9452054795 | J29: 1.112006446 | L29: =AVERAGEIFS(Lançamento!Y46:Y57,Lançamento!B46:B57,"<="&X2) -> 0.85 | M29: =AVERAGEIFS(Lançamento!S46:S57,Lançamento!AD8:AD19,"<="&X2) -> 0.9575757576 | N29: 1.126559715 | W29: 8 | X29: Agosto | Y29: AGO
E30: =Lançamento!AD40 -> INDICADORES DE RH | F30: =Lançamento!AD42 -> ABSENTEÍSMO | H30: =VLOOKUP(X2,Lançamento!AD46:AH57,3,0) -> 0.02 | I30: =VLOOKUP(X2,Lançamento!AD46:AH57,4,0) -> 0.03765507839 | J30: 1.88275392 | L30: =AVERAGEIFS(Lançamento!AF46:AF57,Lançamento!B46:B57,"<="&X2) -> 0.02 | M30: =AVERAGEIFS(Lançamento!AG46:AG57,Lançamento!AD8:AD19,"<="&X2) -> 0.02272177828 | N30: 1.136088914 | V30: 2026 | W30: 7 | X30: Julho | Y30: JUL
F31: =Lançamento!AK42 -> TREINAMENTO | H31: =VLOOKUP(X2,Lançamento!AK46:AO57,3,0) -> 0.5 | I31: =VLOOKUP(X2,Lançamento!AK46:AO57,4,0) -> 0.5708841463 | J31: 1.141768293 | L31: =AVERAGEIFS(Lançamento!AM46:AM57,Lançamento!B46:B57,"<="&X2) -> 0.5 | M31: =AVERAGEIFS(Lançamento!AN46:AN57,Lançamento!AD8:AD19,"<="&X2) -> 0.6200863787 | N31: 1.240172757 | W31: 8 | X31: Agosto | Y31: AGO

Sheet Dashboard (hidden)
A1: Seleção de Indicador | B1: EFICIÊNCIA DE MÃO DE OBRA | C1: Meta
A2: JAN | B2: =Cálculos!B2 -> 0.7346440683 | C2: =Cálculos!C2 -> 70
A3: FEV | B3: =Cálculos!B3 -> 0.7738724293 | C3: =Cálculos!C3 -> 71
A4: MAR | B4: =Cálculos!B4 -> 0.8422044361 | C4: =Cálculos!C4 -> 72
A5: ABR | B5: =Cálculos!B5 -> 0.8601774155 | C5: =Cálculos!C5 -> 73
A6: MAI | B6: =Cálculos!B6 -> 0.9057103007 | C6: =Cálculos!C6 -> 74
A7: JUN
A8: JUL
A9: AGO
A10: SET
A11: OUT
A12: NOV
A13: DEZ
A17: Média | B17: =Cálculos!B13 -> 1 | C17: =Cálculos!C13 -> 72

Sheet Cálculos (hidden)
A1: Mês | B1: =Dashboard!B1 -> EFICIÊNCIA DE MÃO DE OBRA | C1: Meta
A2: JAN | B2: =INDEX(Data!$A$2:$E$7,MATCH(Cálculos!A2,Data!$A$2:$A$7,0),MATCH(Cálculos!$B$1,Data!$A$2:$E$2,0)) -> 0.7346440683 | C2: =INDEX(Data!$A$16:$E$21,MATCH(Cálculos!A2,Data!$A$16:$A$21,0),MATCH(Cálculos!$B$1,Data!$A$16:$E$16,0)) -> 70
A3: FEV | B3: =INDEX(Data!$A$2:$E$7,MATCH(Cálculos!A3,Data!$A$2:$A$7,0),MATCH(Cálculos!$B$1,Data!$A$2:$E$2,0)) -> 0.7738724293 | C3: =INDEX(Data!$A$16:$E$21,MATCH(Cálculos!A3,Data!$A$16:$A$21,0),MATCH(Cálculos!$B$1,Data!$A$16:$E$16,0)) -> 71
A4: MAR | B4: =INDEX(Data!$A$2:$E$7,MATCH(Cálculos!A4,Data!$A$2:$A$7,0),MATCH(Cálculos!$B$1,Data!$A$2:$E$2,0)) -> 0.8422044361 | C4: =INDEX(Data!$A$16:$E$21,MATCH(Cálculos!A4,Data!$A$16:$A$21,0),MATCH(Cálculos!$B$1,Data!$A$16:$E$16,0)) -> 72
A5: ABR | B5: =INDEX(Data!$A$2:$E$7,MATCH(Cálculos!A5,Data!$A$2:$A$7,0),MATCH(Cálculos!$B$1,Data!$A$2:$E$2,0)) -> 0.8601774155 | C5: =INDEX(Data!$A$16:$E$21,MATCH(Cálculos!A5,Data!$A$16:$A$21,0),MATCH(Cálculos!$B$1,Data!$A$16:$E$16,0)) -> 73
A6: MAI | B6: =INDEX(Data!$A$2:$E$7,MATCH(Cálculos!A6,Data!$A$2:$A$7,0),MATCH(Cálculos!$B$1,Data!$A$2:$E$2,0)) -> 0.9057103007 | C6: =INDEX(Data!$A$16:$E$21,MATCH(Cálculos!A6,Data!$A$16:$A$21,0),MATCH(Cálculos!$B$1,Data!$A$16:$E$16,0)) -> 74
A7: JUN
A8: JUL
A9: AGO
A10: SET
A11: OUT
A12: NOV
A13: DEZ | B13: =ROUND(AVERAGE(B2:B6),0) -> 1 | C13: =ROUND(AVERAGE(C2:C6),0) -> 72

Sheet Lançamento (hidden)
B2: INDICADOR COMERCIAL | P2: INDICADOR DA PRODUÇÃO | AK2: INDICADOR DA QUALIDADE
B4: SATISFAÇÃO DE CLIENTE NPS | I4: FATURAMENTO MENSAL | P4: EFICIÊNCIA DE MÃO DE OBRA | W4: REJEIÇÃO INTERNA | AD4: HORAS DE RETRABALHO | AK4: RNC DE CLIENTE | AR4: CUSTO NÃO QUALIDADE | AY4: CERTIFICAÇÃO ISO 9001
B6: Mês Selecionado | E6: =listas!G2 -> 9 | F6: Status Mês | G6: =VLOOKUP($E$6,$B$8:$G$19,6,FALSE) -> 0.95 | I6: Mês Selecionado | L6: =E6 -> 9 | M6: Status Mês | N6: =VLOOKUP($E$6,$I$8:$N$19,6,FALSE) -> 1.024019248 | P6: Mês Selecionado | S6: =E6 -> 9 | T6: Status Mês | U6: =VLOOKUP($E$6,$P$8:$U$19,6,FALSE) -> 1.1211983 | W6: Mês Selecionado | Z6: =L6 -> 9 | AA6: Status Mês | AB6: =VLOOKUP(Z6,W8:AB19,6,FALSE) -> 1.5 | AD6: Mês Selecionado | AG6: =Z6 -> 9 | AH6: Status Mês | AI6: =VLOOKUP(AG6,AD8:AI19,6,FALSE) -> 1.382 | AK6: Mês Selecionado | AN6: =Z6 -> 9 | AO6: Status Mês | AP6: =VLOOKUP(AN6,AK8:AP19,6,FALSE) -> 1 | AR6: Mês Selecionado | AU6: =E6 -> 9 | AV6: Status Mês | AW6: =VLOOKUP(AU6,AR8:AW19,6,FALSE) -> 0.82 | AY6: Mês Selecionado | BB6: =Z6 -> 9 | BC6: Status Mês | BD6: =VLOOKUP(BB6,AY8:BD19,6,FALSE) -> 1
D7: Meta | E7: Realizado | F7: Média | G7: Status | K7: Meta | L7: Realizado | M7: Média | N7: Status | R7: Meta | S7: Realizado | T7: Média | U7: Status | Y7: Meta | Z7: Realizado | AA7: Média | AB7: Status | AF7: Meta | AG7: Realizado | AH7: Média | AI7: Status | AM7: Meta | AN7: Realizado | AO7: Média | AP7: Status | AT7: Meta | AU7: Realizado | AV7: Média | AW7: Status | BA7: Meta | BB7: Realizado | BC7: Média | BD7: Status
B8: 1 | C8: JAN | D8: =IF('[3]Base Dados'!F$363="","",'[3]Base Dados'!F$363) -> 60 | E8: =IF('[3]Base Dados'!F$362="","",'[3]Base Dados'!F$362) -> 23 | F8: =AVERAGE(E8:E19) -> 34.33333333 | G8: =IF(E8="","",E8/D8) -> 0.3833333333 | I8: 1 | J8: JAN | K8: =IF('[3]Base Dados'!F$371="","",'[3]Base Dados'!F$371) -> 5969034 | L8: =IF('[3]Base Dados'!F$369="","",'[3]Base Dados'!F$369) -> 5920749 | M8: =AVERAGE(L8:L19) -> 6801486.584 | N8: =IF(L8="","",L8/K8) -> 0.9919107514 | P8: 1 | Q8: JAN | R8: 0.9 | S8: 0.7346440683 | T8: =AVERAGE(S8:S19) -> 0.8392483226 | U8: =IF(S8="","",S8/R8) -> 0.816271187 | W8: 1 | X8: JAN | Y8: =IF('[3]Base Dados'!F$66="","",'[3]Base Dados'!F$66) -> 0.05 | Z8: =IF('[3]Base Dados'!F$63="","",'[3]Base Dados'!F$65) -> 0.03325 | AA8: =AVERAGE(Z8:Z19) -> 0.04288888889 | AB8: =IF(Z8="","",Z8/Y8) -> 0.665 | AD8: 1 | AE8: JAN | AF8: =IF('[3]Base Dados'!F$47="","",'[3]Base Dados'!F$47) -> 600 | AG8: =IF('[3]Base Dados'!F$46="","",'[3]Base Dados'!F$46) -> 521 | AH8: =AVERAGE(AG8:AG19) -> 770.6788889 | AI8: =IF(AG8="","",AG8/AF8) -> 0.8683333333 | AK8: 1 | AL8: JAN | AM8: =IF('[3]Base Dados'!G$76="","",'[3]Base Dados'!G$76) -> 3 | AN8: =IF('[3]Base Dados'!G$75="","",'[3]Base Dados'!G$75) -> 2 | AO8: =AVERAGE(AN8:AN19) -> 3.8 | AP8: =IF(AN8="","",AN8/AM8) -> 0.6666666667 | AR8: 1 | AS8: JAN | AT8: =IF('[3]Base Dados'!F$55="","",'[3]Base Dados'!F$55) -> 0.015 | AU8: =IF('[3]Base Dados'!F$54="","",'[3]Base Dados'!F$54) -> 0.0003 | AV8: =AVERAGE(AU8:AU19) -> 0.0119 | AW8: =IF(AU8="","",AU8/AT8) -> 0.02 | AY8: 1 | AZ8: JAN | BA8: 1 | BB8: 0.7 | BC8: =AVERAGE(BB8:BB19) -> 0.9333333333 | BD8: =IF(BB8="","",BB8/BA8) -> 0.7
B9: 2 | C9: FEV | D9: =IF('[3]Base Dados'!G$363="","",'[3]Base Dados'!G$363) -> 60 | E9: =IF('[3]Base Dados'!G$362="","",'[3]Base Dados'!G$362) -> 23 | F9: =F8 -> 34.33333333 | G9: 0.3833333333 | I9: 2 | J9: FEV | K9: =IF('[3]Base Dados'!G$371="","",'[3]Base Dados'!G$371) -> 7134119 | L9: =IF('[3]Base Dados'!G$369="","",'[3]Base Dados'!G$369) -> 6728756 | M9: =M8 -> 6801486.584 | N9: 0.9431796694 | P9: 2 | Q9: FEV | R9: 0.7 | S9: 0.7738724293 | T9: =T8 -> 0.8392483226 | U9: 1.105532042 | W9: 2 | X9: FEV | Y9: =IF('[3]Base Dados'!G$66="","",'[3]Base Dados'!G$66) -> 0.05 | Z9: =IF('[3]Base Dados'!G$63="","",'[3]Base Dados'!G$65) -> 0.0355 | AA9: =AA8 -> 0.04288888889 | AB9: 0.71 | AD9: 2 | AE9: FEV | AF9: =IF('[3]Base Dados'!G$47="","",'[3]Base Dados'!G$47) -> 600 | AG9: =IF('[3]Base Dados'!G$46="","",'[3]Base Dados'!G$46) -> 1006.21 | AH9: =AH8 -> 770.6788889 | AI9: 1.677016667 | AK9: 2 | AL9: FEV | AM9: =IF('[3]Base Dados'!H$76="","",'[3]Base Dados'!H$76) -> 3 | AN9: =IF('[3]Base Dados'!H$75="","",'[3]Base Dados'!H$75) -> 2 | AO9: =AO8 -> 3.8 | AP9: 0.6666666667 | AR9: 2 | AS9: FEV | AT9: =IF('[3]Base Dados'!G$55="","",'[3]Base Dados'!G$55) -> 0.015 | AU9: =IF('[3]Base Dados'!G$54="","",'[3]Base Dados'!G$54) -> 0.0039 | AV9: =AV8 -> 0.0119 | AW9: 0.26 | AY9: 2 | AZ9: FEV | BA9: 1 | BB9: 0.8 | BC9: =BC8 -> 0.9333333333 | BD9: 0.8
B10: 3 | C10: MAR | D10: =IF('[3]Base Dados'!H$363="","",'[3]Base Dados'!H$363) -> 60 | E10: =IF('[3]Base Dados'!H$362="","",'[3]Base Dados'!H$362) -> 23 | F10: =F9 -> 34.33333333 | G10: 0.3833333333 | I10: 3 | J10: MAR | K10: =IF('[3]Base Dados'!H$371="","",'[3]Base Dados'!H$371) -> 7102330 | L10: =IF('[3]Base Dados'!H$369="","",'[3]Base Dados'!H$369) -> 6056838 | M10: =M9 -> 6801486.584 | N10: 0.8527959135 | P10: 3 | Q10: MAR | R10: 0.7 | S10: 0.8422044361 | T10: =T9 -> 0.8392483226 | U10: 1.203149194 | W10: 3 | X10: MAR | Y10: =IF('[3]Base Dados'!H$66="","",'[3]Base Dados'!H$66) -> 0.05 | Z10: =IF('[3]Base Dados'!H$63="","",'[3]Base Dados'!H$65) -> 0.026 | AA10: =AA9 -> 0.04288888889 | AB10: 0.52 | AD10: 3 | AE10: MAR | AF10: =IF('[3]Base Dados'!H$47="","",'[3]Base Dados'!H$47) -> 600 | AG10: =IF('[3]Base Dados'!H$46="","",'[3]Base Dados'!H$46) -> 789.62 | AH10: =AH9 -> 770.6788889 | AI10: 1.316033333 | AK10: 3 | AL10: MAR | AM10: =IF('[3]Base Dados'!I$76="","",'[3]Base Dados'!I$76) -> 3 | AN10: =IF('[3]Base Dados'!I$75="","",'[3]Base Dados'!I$75) -> 6 | AO10: =AO9 -> 3.8 | AP10: 2 | AR10: 3 | AS10: MAR | AT10: =IF('[3]Base Dados'!H$55="","",'[3]Base Dados'!H$55) -> 0.015 | AU10: =IF('[3]Base Dados'!H$54="","",'[3]Base Dados'!H$54) -> 0.0043 | AV10: =AV9 -> 0.0119 | AW10: 0.2866666667 | AY10: 3 | AZ10: MAR | BA10: 1 | BB10: 0.9 | BC10: =BC9 -> 0.9333333333 | BD10: 0.9
B11: 4 | C11: ABR | D11: =IF('[3]Base Dados'!I$363="","",'[3]Base Dados'!I$363) -> 60 | E11: =IF('[3]Base Dados'!I$362="","",'[3]Base Dados'!I$362) -> 23 | F11: 34.33333333 | G11: 0.3833333333 | I11: 4 | J11: ABR | K11: =IF('[3]Base Dados'!I$371="","",'[3]Base Dados'!I$371) -> 6681373 | L11: =IF('[3]Base Dados'!I$369="","",'[3]Base Dados'!I$369) -> 7056727 | M11: 6801486.584 | N11: 1.056179172 | P11: 4 | Q11: ABR | R11: 0.7 | S11: 0.8601774155 | T11: 0.8392483226 | U11: 1.228824879 | W11: 4 | X11: ABR | Y11: =IF('[3]Base Dados'!I$66="","",'[3]Base Dados'!I$66) -> 0.045 | Z11: =IF('[3]Base Dados'!I$63="","",'[3]Base Dados'!I$65) -> 0.0275 | AA11: 0.04288888889 | AB11: 0.6111111111 | AD11: 4 | AE11: ABR | AF11: =IF('[3]Base Dados'!I$47="","",'[3]Base Dados'!I$47) -> 500 | AG11: =IF('[3]Base Dados'!I$46="","",'[3]Base Dados'!I$46) -> 148.72 | AH11: 770.6788889 | AI11: 0.29744 | AK11: 4 | AL11: ABR | AM11: =IF('[3]Base Dados'!J$76="","",'[3]Base Dados'!J$76) -> 3 | AN11: =IF('[3]Base Dados'!J$75="","",'[3]Base Dados'!J$75) -> 3 | AO11: 3.8 | AP11: 1 | AR11: 4 | AS11: ABR | AT11: =IF('[3]Base Dados'!I$55="","",'[3]Base Dados'!I$55) -> 0.015 | AU11: =IF('[3]Base Dados'!I$54="","",'[3]Base Dados'!I$54) -> 0.0031 | AV11: 0.0119 | AW11: 0.2066666667 | AY11: 4 | AZ11: ABR | BA11: 1 | BB11: 0.9 | BC11: 0.9333333333 | BD11: 0.9
B12: 5 | C12: MAI | D12: =IF('[3]Base Dados'!J$363="","",'[3]Base Dados'!J$363) -> 60 | E12: =IF('[3]Base Dados'!J$362="","",'[3]Base Dados'!J$362) -> 23 | F12: 34.33333333 | G12: 0.3833333333 | I12: 5 | J12: MAI | K12: =IF('[3]Base Dados'!J$371="","",'[3]Base Dados'!J$371) -> 6417033 | L12: =IF('[3]Base Dados'!J$369="","",'[3]Base Dados'!J$369) -> 6779006.26 | M12: 6801486.584 | N12: 1.056408197 | P12: 5 | Q12: MAI | R12: 0.8 | S12: 0.9057103007 | T12: 0.8392483226 | U12: 1.132137876 | W12: 5 | X12: MAI | Y12: =IF('[3]Base Dados'!J$66="","",'[3]Base Dados'!J$66) -> 0.04 | Z12: =IF('[3]Base Dados'!J$63="","",'[3]Base Dados'!J$65) -> 0.0345 | AA12: 0.04288888889 | AB12: 0.8625 | AD12: 5 | AE12: MAI | AF12: =IF('[3]Base Dados'!J$47="","",'[3]Base Dados'!J$47) -> 500 | AG12: =IF('[3]Base Dados'!J$46="","",'[3]Base Dados'!J$46) -> 519.56 | AH12: 770.6788889 | AI12: 1.03912 | AK12: 5 | AL12: MAI | AM12: =IF('[3]Base Dados'!K$76="","",'[3]Base Dados'!K$76) -> 2 | AN12: =IF('[3]Base Dados'!K$75="","",'[3]Base Dados'!K$75) -> 5 | AO12: 3.8 | AP12: 2.5 | AR12: 5 | AS12: MAI | AT12: =IF('[3]Base Dados'!J$55="","",'[3]Base Dados'!J$55) -> 0.005 | AU12: =IF('[3]Base Dados'!J$54="","",'[3]Base Dados'!J$54) -> 0.0045 | AV12: 0.0119 | AW12: 0.9 | AY12: 5 | AZ12: MAI | BA12: 1 | BB12: 0.95 | BC12: 0.9333333333 | BD12: 0.95
B13: 6 | C13: JUN | D13: =IF('[3]Base Dados'!K$363="","",'[3]Base Dados'!K$363) -> 60 | E13: =IF('[3]Base Dados'!K$362="","",'[3]Base Dados'!K$362) -> 23 | F13: 34.33333333 | G13: 0.3833333333 | I13: 6 | J13: JUN | K13: =IF('[3]Base Dados'!K$371="","",'[3]Base Dados'!K$371) -> 6420195 | L13: =IF('[3]Base Dados'!K$369="","",'[3]Base Dados'!K$369) -> 6700902 | M13: 6801486.584 | N13: 1.043722504 | P13: 6 | Q13: JUN | R13: 0.8 | S13: 0.9004583586 | T13: 0.8392483226 | U13: 1.125572948 | W13: 6 | X13: JUN | Y13: =IF('[3]Base Dados'!K$66="","",'[3]Base Dados'!K$66) -> 0.04 | Z13: =IF('[3]Base Dados'!K$63="","",'[3]Base Dados'!K$65) -> 0.038 | AA13: 0.04288888889 | AB13: 0.95 | AD13: 6 | AE13: JUN | AF13: =IF('[3]Base Dados'!K$47="","",'[3]Base Dados'!K$47) -> 500 | AG13: =IF('[3]Base Dados'!K$46="","",'[3]Base Dados'!K$46) -> 1192 | AH13: 770.6788889 | AI13: 2.384 | AK13: 6 | AL13: JUN | AM13: =IF('[3]Base Dados'!L$76="","",'[3]Base Dados'!L$76) -> 2 | AN13: =IF('[3]Base Dados'!L$75="","",'[3]Base Dados'!L$75) -> 9 | AO13: 3.8 | AP13: 4.5 | AR13: 6 | AS13: JUN | AT13: =IF('[3]Base Dados'!K$55="","",'[3]Base Dados'!K$55) -> 0.005 | AU13: =IF('[3]Base Dados'!K$54="","",'[3]Base Dados'!K$54) -> 0.0567 | AV13: 0.0119 | AW13: 11.34 | AY13: 6 | AZ13: JUN | BA13: 1 | BB13: 0.95 | BC13: 0.9333333333 | BD13: 0.95
B14: 7 | C14: JUL | D14: =IF('[3]Base Dados'!L$363="","",'[3]Base Dados'!L$363) -> 60 | E14: =IF('[3]Base Dados'!L$362="","",'[3]Base Dados'!L$362) -> 57 | F14: 34.33333333 | G14: 0.95 | I14: 7 | J14: JUL | K14: =IF('[3]Base Dados'!L$371="","",'[3]Base Dados'!L$371) -> 7124833 | L14: =IF('[3]Base Dados'!L$369="","",'[3]Base Dados'!L$369) -> 7395049 | M14: 6801486.584 | N14: 1.037925942 | P14: 7 | Q14: JUL | R14: 0.8 | S14: 0.8526726774 | T14: 0.8392483226 | U14: 1.065840847 | W14: 7 | X14: JUL | Y14: =IF('[3]Base Dados'!L$66="","",'[3]Base Dados'!L$66) -> 0.035 | Z14: =IF('[3]Base Dados'!L$63="","",'[3]Base Dados'!L$65) -> 0.078 | AA14: 0.04288888889 | AB14: 2.228571429 | AD14: 7 | AE14: JUL | AF14: =IF('[3]Base Dados'!L$47="","",'[3]Base Dados'!L$47) -> 500 | AG14: =IF('[3]Base Dados'!L$46="","",'[3]Base Dados'!L$46) -> 1445 | AH14: 770.6788889 | AI14: 2.89 | AK14: 7 | AL14: JUL | AM14: =IF('[3]Base Dados'!M$76="","",'[3]Base Dados'!M$76) -> 2 | AN14: =IF('[3]Base Dados'!M$75="","",'[3]Base Dados'!M$75) -> 5 | AO14: 3.8 | AP14: 2.5 | AR14: 7 | AS14: JUL | AT14: =IF('[3]Base Dados'!L$55="","",'[3]Base Dados'!L$55) -> 0.005 | AU14: =IF('[3]Base Dados'!L$54="","",'[3]Base Dados'!L$54) -> 0.0291 | AV14: 0.0119 | AW14: 5.82 | AY14: 7 | AZ14: JUL | BA14: 1 | BB14: 1 | BC14: 0.9333333333 | BD14: 1
B15: 8 | C15: AGO | D15: =IF('[3]Base Dados'!M$363="","",'[3]Base Dados'!M$363) -> 60 | E15: =IF('[3]Base Dados'!M$362="","",'[3]Base Dados'!M$362) -> 57 | F15: 34.33333333 | G15: 0.95 | I15: 8 | J15: AGO | K15: =IF('[3]Base Dados'!M$371="","",'[3]Base Dados'!M$371) -> 7183658 | L15: =IF('[3]Base Dados'!M$369="","",'[3]Base Dados'!M$369) -> 7010077 | M15: 6801486.584 | N15: 0.9758366838 | P15: 8 | Q15: AGO | R15: 0.82 | S15: 0.7641126111 | T15: 0.8392483226 | U15: 0.9318446477 | W15: 8 | X15: AGO | Y15: =IF('[3]Base Dados'!M$66="","",'[3]Base Dados'!M$66) -> 0.035 | Z15: =IF('[3]Base Dados'!M$63="","",'[3]Base Dados'!M$65) -> 0.06075 | AA15: 0.04288888889 | AB15: 1.735714286 | AD15: 8 | AE15: AGO | AF15: =IF('[3]Base Dados'!M$47="","",'[3]Base Dados'!M$47) -> 500 | AG15: =IF('[3]Base Dados'!M$46="","",'[3]Base Dados'!M$46) -> 623 | AH15: 770.6788889 | AI15: 1.246 | AK15: 8 | AL15: AGO | AM15: =IF('[3]Base Dados'!N$76="","",'[3]Base Dados'!N$76) -> 2 | AN15: =IF('[3]Base Dados'!N$75="","",'[3]Base Dados'!N$75) -> 2 | AO15: 3.8 | AP15: 1 | AR15: 8 | AS15: AGO | AT15: =IF('[3]Base Dados'!M$55="","",'[3]Base Dados'!M$55) -> 0.005 | AU15: =IF('[3]Base Dados'!M$54="","",'[3]Base Dados'!M$54) -> 0.0011 | AV15: 0.0119 | AW15: 0.22 | AY15: 8 | AZ15: AGO | BA15: 1 | BB15: 1 | BC15: 0.9333333333 | BD15: 1
B16: 9 | C16: SET | D16: =IF('[3]Base Dados'!N$363="","",'[3]Base Dados'!N$363) -> 60 | E16: =IF('[3]Base Dados'!N$362="","",'[3]Base Dados'!N$362) -> 57 | F16: 34.33333333 | G16: 0.95 | I16: 9 | J16: SET | K16: =IF('[3]Base Dados'!N$371="","",'[3]Base Dados'!N$371) -> 7387825 | L16: =IF('[3]Base Dados'!N$369="","",'[3]Base Dados'!N$369) -> 7565275 | M16: 6801486.584 | N16: 1.024019248 | P16: 9 | Q16: SET | R16: 0.82 | S16: 0.9193826062 | T16: 0.8392483226 | U16: 1.1211983 | W16: 9 | X16: SET | Y16: =IF('[3]Base Dados'!N$66="","",'[3]Base Dados'!N$66) -> 0.035 | Z16: =IF('[3]Base Dados'!N$63="","",'[3]Base Dados'!N$65) -> 0.0525 | AA16: 0.04288888889 | AB16: 1.5 | AD16: 9 | AE16: SET | AF16: =IF('[3]Base Dados'!N$47="","",'[3]Base Dados'!N$47) -> 500 | AG16: =IF('[3]Base Dados'!N$46="","",'[3]Base Dados'!N$46) -> 691 | AH16: 770.6788889 | AI16: 1.382 | AK16: 9 | AL16: SET | AM16: =IF('[3]Base Dados'!O$76="","",'[3]Base Dados'!O$76) -> 2 | AN16: =IF('[3]Base Dados'!O$75="","",'[3]Base Dados'!O$75) -> 2 | AO16: 3.8 | AP16: 1 | AR16: 9 | AS16: SET | AT16: =IF('[3]Base Dados'!N$55="","",'[3]Base Dados'!N$55) -> 0.005 | AU16: =IF('[3]Base Dados'!N$54="","",'[3]Base Dados'!N$54) -> 0.0041 | AV16: 0.0119 | AW16: 0.82 | AY16: 9 | AZ16: SET | BA16: 1 | BB16: 1 | BC16: 0.9333333333 | BD16: 1
B17: 10 | C17: OUT | D17: =IF('[3]Base Dados'!O$363="","",'[3]Base Dados'!O$363) -> 60 | E17: =IF('[3]Base Dados'!O$362="","",'[3]Base Dados'!O$362) ->  | F17: 34.33333333 | I17: 10 | J17: OUT | K17: =IF('[3]Base Dados'!O$371="","",'[3]Base Dados'!O$371) -> 7309759 | L17: =IF('[3]Base Dados'!O$369="","",'[3]Base Dados'!O$369) ->  | M17: 6801486.584 | P17: 10 | Q17: OUT | R17: 0.82 | T17: 0.8392483226 | W17: 10 | X17: OUT | Y17: =IF('[3]Base Dados'!O$66="","",'[3]Base Dados'!O$66) -> 0.03 | Z17: =IF('[3]Base Dados'!O$63="","",'[3]Base Dados'!O$65) ->  | AA17: 0.04288888889 | AD17: 10 | AE17: OUT | AF17: =IF('[3]Base Dados'!O$47="","",'[3]Base Dados'!O$47) -> 500 | AG17: =IF('[3]Base Dados'!O$46="","",'[3]Base Dados'!O$46) ->  | AH17: 770.6788889 | AK17: 10 | AL17: OUT | AM17: =IF('[3]Base Dados'!P$76="","",'[3]Base Dados'!P$76) -> 2 | AN17: =IF('[3]Base Dados'!P$75="","",'[3]Base Dados'!P$75) ->  | AO17: 3.8 | AR17: 10 | AS17: OUT | AT17: =IF('[3]Base Dados'!O$55="","",'[3]Base Dados'!O$55) -> 0.005 | AU17: =IF('[3]Base Dados'!O$54="","",'[3]Base Dados'!O$54) ->  | AV17: 0.0119 | AY17: 10 | AZ17: OUT | BA17: 1 | BB17: 1 | BC17: 0.9333333333 | BD17: 1
B18: 11 | C18: NOV | D18: =IF('[3]Base Dados'!P$363="","",'[3]Base Dados'!P$363) -> 60 | E18: =IF('[3]Base Dados'!P$362="","",'[3]Base Dados'!P$362) ->  | F18: 34.33333333 | I18: 11 | J18: NOV | K18: =IF('[3]Base Dados'!P$371="","",'[3]Base Dados'!P$371) -> 7411696 | L18: =IF('[3]Base Dados'!P$369="","",'[3]Base Dados'!P$369) ->  | M18: 6801486.584 | P18: 11 | Q18: NOV | R18: 0.85 | T18: 0.8392483226 | W18: 11 | X18: NOV | Y18: =IF('[3]Base Dados'!P$66="","",'[3]Base Dados'!P$66) -> 0.03 | Z18: =IF('[3]Base Dados'!P$63="","",'[3]Base Dados'!P$65) ->  | AA18: 0.04288888889 | AD18: 11 | AE18: NOV | AF18: =IF('[3]Base Dados'!P$47="","",'[3]Base Dados'!P$47) -> 500 | AG18: =IF('[3]Base Dados'!P$46="","",'[3]Base Dados'!P$46) ->  | AH18: 770.6788889 | AK18: 11 | AL18: NOV | AM18: =IF('[3]Base Dados'!Q$76="","",'[3]Base Dados'!Q$76) -> 2 | AN18: =IF('[3]Base Dados'!Q$75="","",'[3]Base Dados'!Q$75) ->  | AO18: 3.8 | AR18: 11 | AS18: NOV | AT18: =IF('[3]Base Dados'!P$55="","",'[3]Base Dados'!P$55) -> 0.005 | AU18: =IF('[3]Base Dados'!P$54="","",'[3]Base Dados'!P$54) ->  | AV18: 0.0119 | AY18: 11 | AZ18: NOV | BA18: 1 | BB18: 1 | BC18: 0.9333333333 | BD18: 1
B19: 12 | C19: DEZ | D19: =IF('[3]Base Dados'!Q$363="","",'[3]Base Dados'!Q$363) -> 60 | E19: =IF('[3]Base Dados'!Q$362="","",'[3]Base Dados'!Q$362) ->  | F19: 34.33333333 | I19: 12 | J19: DEZ | K19: =IF('[3]Base Dados'!Q$371="","",'[3]Base Dados'!Q$371) -> 3884849 | L19: =IF('[3]Base Dados'!Q$369="","",'[3]Base Dados'!Q$369) ->  | M19: 6801486.584 | P19: 12 | Q19: DEZ | R19: 0.85 | T19: 0.8392483226 | W19: 12 | X19: DEZ | Y19: =IF('[3]Base Dados'!Q$66="","",'[3]Base Dados'!Q$66) -> 0.03 | Z19: =IF('[3]Base Dados'!Q$63="","",'[3]Base Dados'!Q$65) ->  | AA19: 0.04288888889 | AD19: 12 | AE19: DEZ | AF19: =IF('[3]Base Dados'!Q$47="","",'[3]Base Dados'!Q$47) -> 500 | AG19: =IF('[3]Base Dados'!Q$46="","",'[3]Base Dados'!Q$46) ->  | AH19: 770.6788889 | AK19: 12 | AL19: DEZ | AM19: =IF('[3]Base Dados'!R$76="","",'[3]Base Dados'!R$76) -> 2 | AN19: =IF('[3]Base Dados'!R$75="","",'[3]Base Dados'!R$75) -> 2 | AO19: 3.8 | AP19: 1 | AR19: 12 | AS19: DEZ | AT19: =IF('[3]Base Dados'!Q$55="","",'[3]Base Dados'!Q$55) -> 0.005 | AU19: =IF('[3]Base Dados'!Q$54="","",'[3]Base Dados'!Q$54) ->  | AV19: 0.0119 | AY19: 12 | AZ19: DEZ | BA19: 1 | BB19: 1 | BC19: 0.9333333333 | BD19: 1
B21: INDICADOR DE PROCESSO
B23: OEE SOPRO | I23: OEE INJEÇÃO | P23: OEE PET | W23: OEE DECORAÇÃO | AD23: REFUGO SOPRO | AK23: REFUGO INJEÇÃO | AR23: REFUGO PET | AY23: REFUGO DECORAÇÃO
B25: Mês Selecionado | E25: =E6 -> 9 | F25: Status Mês | G25: =VLOOKUP(E25,B27:G38,6,FALSE) -> 1.79470705 | I25: Mês Selecionado | L25: =E25 -> 9 | M25: Status Mês | N25: =VLOOKUP(L25,I27:N38,6,FALSE) -> 1.421496438 | P25: Mês Selecionado | S25: =E25 -> 9 | T25: Status Mês | U25: =VLOOKUP(S25,P27:U38,6,FALSE) -> 1.075150622 | W25: Mês Selecionado | Z25: =L25 -> 9 | AA25: Status Mês | AB25: =VLOOKUP(Z25,W27:AB38,6,FALSE) -> 1.340942736 | AD25: Mês Selecionado | AG25: =Z6 -> 9 | AH25: Status Mês | AI25: =VLOOKUP(AG25,AD27:AI38,6,FALSE) -> 1.569508952 | AK25: Mês Selecionado | AN25: =Z25 -> 9 | AO25: Status Mês | AP25: =VLOOKUP(AN25,AK27:AP38,6,FALSE) -> 0.9459691479 | AR25: Mês Selecionado | AU25: =AG25 -> 9 | AV25: Status Mês | AW25: =VLOOKUP(AU25,AR27:AW38,6,FALSE) -> 1.20396146 | AY25: Mês Selecionado | BB25: =AL25 -> 0 | BC25: Status Mês | BD25: =VLOOKUP(BB25,AY27:BD38,6,FALSE) -> 
D26: Meta | E26: Realizado | F26: Média | G26: Status | K26: Meta | L26: Realizado | M26: Média | N26: Status | R26: Meta | S26: Realizado | T26: Média | U26: Status | Y26: Meta | Z26: Realizado | AA26: Média | AB26: Status | AF26: Meta | AG26: Realizado | AH26: Média | AI26: Status | AM26: Meta | AN26: Realizado | AO26: Média | AP26: Status | AT26: Meta | AU26: Realizado | AV26: Média | AW26: Status | BA26: Meta | BB26: Realizado | BC26: Média | BD26: Status
B27: 1 | C27: JAN | D27: =IF('[3]Base Dados'!E$94="","",'[3]Base Dados'!E$94) -> 0.61408758 | E27: =IF('[3]Base Dados'!E$90="","",'[3]Base Dados'!E$93) -> 0.929 | F27: =AVERAGE(E27:E38) -> 0.7689166667 | G27: =IF(E27="","",E27/D27) -> 1.512813531 | I27: 1 | J27: JAN | K27: =IF('[3]Base Dados'!E$100="","",'[3]Base Dados'!E$100) -> 0.64728224 | L27: =IF('[3]Base Dados'!E$98="","",'[3]Base Dados'!E$99) -> 0.968 | M27: =AVERAGE(L27:L38) -> 0.9798 | N27: =IF(L27="","",L27/K27) -> 1.495483639 | P27: 1 | Q27: JAN | R27: 0.7 | S27: 0.694011038 | T27: =AVERAGE(S27:S38) -> 0.7504771326 | U27: =IF(S27="","",S27/R27) -> 0.99144434 | W27: 1 | X27: JAN | Y27: =IF('[3]Base Dados'!F$106="","",'[3]Base Dados'!F$106) -> 0.51563397 | Z27: =IF('[3]Base Dados'!F$103="","",'[3]Base Dados'!F$105) -> 0.969 | AA27: =AVERAGE(Z27:Z38) -> 0.9721111111 | AB27: =IF(Z27="","",Z27/Y27) -> 1.879240035 | AD27: 1 | AE27: JAN | AF27: =IF('[3]Base Dados'!E$34="","",'[3]Base Dados'!E$34) -> 0.04 | AG27: =IF('[3]Base Dados'!E$33="","",'[3]Base Dados'!E$33) -> 0.08052887453 | AH27: =AVERAGE(AG27:AG38) -> 0.07571859653 | AI27: =IF(AG27="","",AG27/AF27) -> 2.013221863 | AK27: 1 | AL27: JAN | AM27: =IF('[3]Base Dados'!E$39="","",'[3]Base Dados'!E$39) -> 0.025 | AN27: =IF('[3]Base Dados'!E$38="","",'[3]Base Dados'!E$38) -> 0.03463277823 | AO27: =AVERAGE(AN27:AN38) -> 0.02340755692 | AP27: =IF(AN27="","",AN27/AM27) -> 1.385311129 | AR27: 1 | AS27: JAN | AT27: =IF('[3]Base Dados'!E$29="","",'[3]Base Dados'!E$29) -> 0.01 | AU27: =IF('[3]Base Dados'!E$28="","",'[3]Base Dados'!E$28) -> 0.02488685704 | AV27: =AVERAGE(AU27:AU38) -> 0.02693016274 | AW27: =IF(AU27="","",AU27/AT27) -> 2.488685704 | AY27: 1 | AZ27: JAN | BA27: =IF('[3]Base Dados'!E$44="","",'[3]Base Dados'!E$44) -> 0.03 | BB27: ='[3]Base Dados'!E$43 -> 0.02565711379 | BC27: =AVERAGE(BB27:BB38) -> 0.02726968024 | BD27: =IF(BB27="","",BB27/BA27) -> 0.8552371265
B28: 2 | C28: FEV | D28: =IF('[3]Base Dados'!F$94="","",'[3]Base Dados'!F$94) -> 0.53724279 | E28: =IF('[3]Base Dados'!F$90="","",'[3]Base Dados'!F$93) -> 0.917 | F28: =F27 -> 0.7689166667 | G28: 1.706863297 | I28: 2 | J28: FEV | K28: =IF('[3]Base Dados'!F$100="","",'[3]Base Dados'!F$100) -> 0.60956784 | L28: =IF('[3]Base Dados'!F$98="","",'[3]Base Dados'!F$99) -> 0.978 | M28: =M27 -> 0.9798 | N28: 1.604415351 | P28: 2 | Q28: FEV | R28: 0.7 | S28: 0.712052208 | T28: =T27 -> 0.7504771326 | U28: 1.01721744 | W28: 2 | X28: FEV | Y28: =IF('[3]Base Dados'!G$106="","",'[3]Base Dados'!G$106) -> 0.5375062 | Z28: =IF('[3]Base Dados'!G$103="","",'[3]Base Dados'!G$105) -> 0.968 | AA28: =AA27 -> 0.9721111111 | AB28: 1.800909459 | AD28: 2 | AE28: FEV | AF28: =IF('[3]Base Dados'!F$34="","",'[3]Base Dados'!F$34) -> 0.075 | AG28: =IF('[3]Base Dados'!F$33="","",'[3]Base Dados'!F$33) -> 0.08358118884 | AH28: =AH27 -> 0.07571859653 | AI28: 1.114415851 | AK28: 2 | AL28: FEV | AM28: =IF('[3]Base Dados'!F$39="","",'[3]Base Dados'!F$39) -> 0.03 | AN28: =IF('[3]Base Dados'!F$38="","",'[3]Base Dados'!F$38) -> 0.02124082782 | AO28: =AO27 -> 0.02340755692 | AP28: 0.7080275941 | AR28: 2 | AS28: FEV | AT28: =IF('[3]Base Dados'!F$29="","",'[3]Base Dados'!F$29) -> 0.03 | AU28: =IF('[3]Base Dados'!F$28="","",'[3]Base Dados'!F$28) -> 0.0283695021 | AV28: =AV27 -> 0.02693016274 | AW28: 0.9456500702 | AY28: 2 | AZ28: FEV | BA28: =IF('[3]Base Dados'!F$44="","",'[3]Base Dados'!F$44) -> 0.03 | BB28: ='[3]Base Dados'!F$43 -> 0.03062155538 | BC28: =BC27 -> 0.02726968024 | BD28: 1.020718513
B29: 3 | C29: MAR | D29: =IF('[3]Base Dados'!G$94="","",'[3]Base Dados'!G$94) -> 0.598069116 | E29: =IF('[3]Base Dados'!G$90="","",'[3]Base Dados'!G$93) -> 0.822 | F29: =F28 -> 0.7689166667 | G29: 1.374423086 | I29: 3 | J29: MAR | K29: =IF('[3]Base Dados'!G$100="","",'[3]Base Dados'!G$100) -> 0.5944092 | L29: =IF('[3]Base Dados'!G$98="","",'[3]Base Dados'!G$99) -> 0.98 | M29: =M28 -> 0.9798 | N29: 1.648695882 | P29: 3 | Q29: MAR | R29: 0.7 | S29: 0.68766054 | T29: =T28 -> 0.7504771326 | U29: 0.9823722 | W29: 3 | X29: MAR | Y29: =IF('[3]Base Dados'!H$106="","",'[3]Base Dados'!H$106) -> 0.501110336 | Z29: =IF('[3]Base Dados'!H$103="","",'[3]Base Dados'!H$105) -> 0.964 | AA29: =AA28 -> 0.9721111111 | AB29: 1.923728031 | AD29: 3 | AE29: MAR | AF29: =IF('[3]Base Dados'!G$34="","",'[3]Base Dados'!G$34) -> 0.075 | AG29: =IF('[3]Base Dados'!G$33="","",'[3]Base Dados'!G$33) -> 0.08217167986 | AH29: =AH28 -> 0.07571859653 | AI29: 1.095622398 | AK29: 3 | AL29: MAR | AM29: =IF('[3]Base Dados'!G$39="","",'[3]Base Dados'!G$39) -> 0.03 | AN29: =IF('[3]Base Dados'!G$38="","",'[3]Base Dados'!G$38) -> 0.02604000443 | AO29: =AO28 -> 0.02340755692 | AP29: 0.8680001478 | AR29: 3 | AS29: MAR | AT29: =IF('[3]Base Dados'!G$29="","",'[3]Base Dados'!G$29) -> 0.03 | AU29: =IF('[3]Base Dados'!G$28="","",'[3]Base Dados'!G$28) -> 0.03181490413 | AV29: =AV28 -> 0.02693016274 | AW29: 1.060496804 | AY29: 3 | AZ29: MAR | BA29: =IF('[3]Base Dados'!G$44="","",'[3]Base Dados'!G$44) -> 0.03 | BB29: ='[3]Base Dados'!G$43 -> 0.03180750305 | BC29: =BC28 -> 0.02726968024 | BD29: 1.060250102
B30: 4 | C30: ABR | D30: =IF('[3]Base Dados'!H$94="","",'[3]Base Dados'!H$94) -> 0.62634456 | E30: =IF('[3]Base Dados'!H$90="","",'[3]Base Dados'!H$93) -> 0.94 | F30: 0.7689166667 | G30: 1.500771396 | I30: 4 | J30: ABR | K30: =IF('[3]Base Dados'!H$100="","",'[3]Base Dados'!H$100) -> 0.699186816 | L30: =IF('[3]Base Dados'!H$98="","",'[3]Base Dados'!H$99) -> 0.972 | M30: 0.9798 | N30: 1.390186396 | P30: 4 | Q30: ABR | R30: 0.7 | S30: 0.7738216 | T30: 0.7504771326 | U30: 1.105459429 | W30: 4 | X30: ABR | Y30: =IF('[3]Base Dados'!I$106="","",'[3]Base Dados'!I$106) -> 0.656842144 | Z30: =IF('[3]Base Dados'!I$103="","",'[3]Base Dados'!I$105) -> 0.976 | AA30: 0.9721111111 | AB30: 1.485897348 | AD30: 4 | AE30: ABR | AF30: =IF('[3]Base Dados'!H$34="","",'[3]Base Dados'!H$34) -> 0.065 | AG30: =IF('[3]Base Dados'!H$33="","",'[3]Base Dados'!H$33) -> 0.06016862402 | AH30: 0.07571859653 | AI30: 0.9256711387 | AK30: 4 | AL30: ABR | AM30: =IF('[3]Base Dados'!H$39="","",'[3]Base Dados'!H$39) -> 0.03 | AN30: =IF('[3]Base Dados'!H$38="","",'[3]Base Dados'!H$38) -> 0.02820726406 | AO30: 0.02340755692 | AP30: 0.9402421352 | AR30: 4 | AS30: ABR | AT30: =IF('[3]Base Dados'!H$29="","",'[3]Base Dados'!H$29) -> 0.03 | AU30: =IF('[3]Base Dados'!H$28="","",'[3]Base Dados'!H$28) -> 0.02434321556 | AV30: 0.02693016274 | AW30: 0.8114405185 | AY30: 4 | AZ30: ABR | BA30: =IF('[3]Base Dados'!H$44="","",'[3]Base Dados'!H$44) -> 0.03 | BB30: ='[3]Base Dados'!H$43 -> 0.03555156227 | BC30: 0.02726968024 | BD30: 1.185052076
B31: 5 | C31: MAI | D31: =IF('[3]Base Dados'!I$94="","",'[3]Base Dados'!I$94) -> 0.679036284 | E31: =IF('[3]Base Dados'!I$90="","",'[3]Base Dados'!I$93) -> 0.948 | F31: 0.7689166667 | G31: 1.396096236 | I31: 5 | J31: MAI | K31: =IF('[3]Base Dados'!I$100="","",'[3]Base Dados'!I$100) -> 0.6988086 | L31: =IF('[3]Base Dados'!I$98="","",'[3]Base Dados'!I$99) -> 0.973 | M31: 0.9798 | N31: 1.392369813 | P31: 5 | Q31: MAI | R31: 0.7 | S31: 0.80777088 | T31: 0.7504771326 | U31: 1.1539584 | W31: 5 | X31: MAI | Y31: =IF('[3]Base Dados'!J$106="","",'[3]Base Dados'!J$106) -> 0.698292 | Z31: =IF('[3]Base Dados'!J$103="","",'[3]Base Dados'!J$105) -> 0.978 | AA31: 0.9721111111 | AB31: 1.400560224 | AD31: 5 | AE31: MAI | AF31: =IF('[3]Base Dados'!I$34="","",'[3]Base Dados'!I$34) -> 0.065 | AG31: =IF('[3]Base Dados'!I$33="","",'[3]Base Dados'!I$33) -> 0.05193994857 | AH31: 0.07571859653 | AI31: 0.7990761319 | AK31: 5 | AL31: MAI | AM31: =IF('[3]Base Dados'!I$39="","",'[3]Base Dados'!I$39) -> 0.03 | AN31: =IF('[3]Base Dados'!I$38="","",'[3]Base Dados'!I$38) -> 0.02649851212 | AO31: 0.02340755692 | AP31: 0.8832837372 | AR31: 5 | AS31: MAI | AT31: =IF('[3]Base Dados'!I$29="","",'[3]Base Dados'!I$29) -> 0.03 | AU31: =IF('[3]Base Dados'!I$28="","",'[3]Base Dados'!I$28) -> 0.02008483631 | AV31: 0.02693016274 | AW31: 0.6694945436 | AY31: 5 | AZ31: MAI | BA31: =IF('[3]Base Dados'!I$44="","",'[3]Base Dados'!I$44) -> 0.03 | BB31: ='[3]Base Dados'!I$43 -> 0.02376055095 | BC31: 0.02726968024 | BD31: 0.792018365
B32: 6 | C32: JUN | D32: =IF('[3]Base Dados'!J$94="","",'[3]Base Dados'!J$94) -> 0.640891648 | E32: =IF('[3]Base Dados'!J$90="","",'[3]Base Dados'!J$93) -> 0.998 | F32: 0.7689166667 | G32: 1.557205501 | I32: 6 | J32: JUN | K32: =IF('[3]Base Dados'!J$100="","",'[3]Base Dados'!J$100) -> 0.724244608 | L32: =IF('[3]Base Dados'!J$98="","",'[3]Base Dados'!J$99) -> 0.998 | M32: 0.9798 | N32: 1.377987477 | P32: 6 | Q32: JUN | R32: 0.7 | S32: 0.770453856 | T32: 0.7504771326 | U32: 1.100648366 | W32: 6 | X32: JUN | Y32: =IF('[3]Base Dados'!K$106="","",'[3]Base Dados'!K$106) -> 0.76026924 | Z32: =IF('[3]Base Dados'!K$103="","",'[3]Base Dados'!K$105) -> 0.972 | AA32: 0.9721111111 | AB32: 1.278494445 | AD32: 6 | AE32: JUN | AF32: =IF('[3]Base Dados'!J$34="","",'[3]Base Dados'!J$34) -> 0.065 | AG32: =IF('[3]Base Dados'!J$33="","",'[3]Base Dados'!J$33) -> 0.07255441581 | AH32: 0.07571859653 | AI32: 1.116221782 | AK32: 6 | AL32: JUN | AM32: =IF('[3]Base Dados'!J$39="","",'[3]Base Dados'!J$39) -> 0.03 | AN32: =IF('[3]Base Dados'!J$38="","",'[3]Base Dados'!J$38) -> 0.02675585284 | AO32: 0.02340755692 | AP32: 0.8918617614 | AR32: 6 | AS32: JUN | AT32: =IF('[3]Base Dados'!J$29="","",'[3]Base Dados'!J$29) -> 0.03 | AU32: =IF('[3]Base Dados'!J$28="","",'[3]Base Dados'!J$28) -> 0.0276764094 | AV32: 0.02693016274 | AW32: 0.92254698 | AY32: 6 | AZ32: JUN | BA32: =IF('[3]Base Dados'!J$44="","",'[3]Base Dados'!J$44) -> 0.03 | BB32: ='[3]Base Dados'!J$43 -> 0.02222986686 | BC32: 0.02726968024 | BD32: 0.740995562
B33: 7 | C33: JUL | D33: =IF('[3]Base Dados'!K$94="","",'[3]Base Dados'!K$94) -> 0.682044174 | E33: =IF('[3]Base Dados'!K$90="","",'[3]Base Dados'!K$93) -> 0.937 | F33: 0.7689166667 | G33: 1.37381131 | I33: 7 | J33: JUL | K33: =IF('[3]Base Dados'!K$100="","",'[3]Base Dados'!K$100) -> 0.78894166 | L33: =IF('[3]Base Dados'!K$98="","",'[3]Base Dados'!K$99) -> 0.985 | M33: 0.9798 | N33: 1.248508033 | P33: 7 | Q33: JUL | R33: 0.72 | S33: 0.729128304 | T33: 0.7504771326 | U33: 1.0126782 | W33: 7 | X33: JUL | Y33: =IF('[3]Base Dados'!L$106="","",'[3]Base Dados'!L$106) -> 0.68483888 | Z33: =IF('[3]Base Dados'!L$103="","",'[3]Base Dados'!L$105) -> 0.974 | AA33: 0.9721111111 | AB33: 1.422232336 | AD33: 7 | AE33: JUL | AF33: =IF('[3]Base Dados'!K$34="","",'[3]Base Dados'!K$34) -> 0.065 | AG33: =IF('[3]Base Dados'!K$33="","",'[3]Base Dados'!K$33) -> 0.06270278572 | AH33: 0.07571859653 | AI33: 0.9646582419 | AK33: 7 | AL33: JUL | AM33: =IF('[3]Base Dados'!K$39="","",'[3]Base Dados'!K$39) -> 0.023 | AN33: =IF('[3]Base Dados'!K$38="","",'[3]Base Dados'!K$38) -> 0.01530167288 | AO33: 0.02340755692 | AP33: 0.6652901251 | AR33: 7 | AS33: JUL | AT33: =IF('[3]Base Dados'!K$29="","",'[3]Base Dados'!K$29) -> 0.027 | AU33: =IF('[3]Base Dados'!K$28="","",'[3]Base Dados'!K$28) -> 0.02823995661 | AV33: 0.02693016274 | AW33: 1.045924319 | AY33: 7 | AZ33: JUL | BA33: =IF('[3]Base Dados'!K$44="","",'[3]Base Dados'!K$44) -> 0.03 | BB33: ='[3]Base Dados'!K$43 -> 0.02457036954 | BC33: 0.02726968024 | BD33: 0.8190123179
B34: 8 | C34: AGO | D34: =IF('[3]Base Dados'!L$94="","",'[3]Base Dados'!L$94) -> 0.596335824 | E34: =IF('[3]Base Dados'!L$90="","",'[3]Base Dados'!L$93) -> 0.912 | F34: 0.7689166667 | G34: 1.529339616 | I34: 8 | J34: AGO | K34: =IF('[3]Base Dados'!L$100="","",'[3]Base Dados'!L$100) -> 0.67671864 | L34: =IF('[3]Base Dados'!L$98="","",'[3]Base Dados'!L$99) -> 0.985 | M34: 0.9798 | N34: 1.455553227 | P34: 8 | Q34: AGO | R34: 0.72 | S34: 0.75150944 | T34: 0.7504771326 | U34: 1.043763111 | W34: 8 | X34: AGO | Y34: =IF('[3]Base Dados'!M$106="","",'[3]Base Dados'!M$106) -> 0.735275232 | Z34: =IF('[3]Base Dados'!M$103="","",'[3]Base Dados'!M$105) -> 0.972 | AA34: 0.9721111111 | AB34: 1.321953954 | AD34: 8 | AE34: AGO | AF34: =IF('[3]Base Dados'!L$34="","",'[3]Base Dados'!L$34) -> 0.062 | AG34: =IF('[3]Base Dados'!L$33="","",'[3]Base Dados'!L$33) -> 0.08787331096 | AH34: 0.07571859653 | AI34: 1.417311467 | AK34: 8 | AL34: AGO | AM34: =IF('[3]Base Dados'!L$39="","",'[3]Base Dados'!L$39) -> 0.023 | AN34: =IF('[3]Base Dados'!L$38="","",'[3]Base Dados'!L$38) -> 0.01481056257 | AO34: 0.02340755692 | AP34: 0.6439375031 | AR34: 8 | AS34: AGO | AT34: =IF('[3]Base Dados'!L$29="","",'[3]Base Dados'!L$29) -> 0.027 | AU34: =IF('[3]Base Dados'!L$28="","",'[3]Base Dados'!L$28) -> 0.029577148 | AV34: 0.02693016274 | AW34: 1.095449926 | AY34: 8 | AZ34: AGO | BA34: =IF('[3]Base Dados'!L$44="","",'[3]Base Dados'!L$44) -> 0.03 | BB34: ='[3]Base Dados'!L$43 -> 0.02570091165 | BC34: 0.02726968024 | BD34: 0.856697055
B35: 9 | C35: SET | D35: =IF('[3]Base Dados'!M$94="","",'[3]Base Dados'!M$94) -> 0.504817764 | E35: =IF('[3]Base Dados'!M$90="","",'[3]Base Dados'!M$93) -> 0.906 | F35: 0.7689166667 | G35: 1.79470705 | I35: 9 | J35: SET | K35: =IF('[3]Base Dados'!M$100="","",'[3]Base Dados'!M$100) -> 0.688007352 | L35: =IF('[3]Base Dados'!M$98="","",'[3]Base Dados'!M$99) -> 0.978 | M35: 0.9798 | N35: 1.421496438 | P35: 9 | Q35: SET | R35: 0.74 | S35: 0.79561146 | T35: 0.7504771326 | U35: 1.075150622 | W35: 9 | X35: SET | Y35: =IF('[3]Base Dados'!N$106="","",'[3]Base Dados'!N$106) -> 0.727846144 | Z35: =IF('[3]Base Dados'!N$103="","",'[3]Base Dados'!N$105) -> 0.976 | AA35: 0.9721111111 | AB35: 1.340942736 | AD35: 9 | AE35: SET | AF35: =IF('[3]Base Dados'!M$34="","",'[3]Base Dados'!M$34) -> 0.06 | AG35: =IF('[3]Base Dados'!M$33="","",'[3]Base Dados'!M$33) -> 0.0941705371 | AH35: 0.07571859653 | AI35: 1.569508952 | AK35: 9 | AL35: SET | AM35: =IF('[3]Base Dados'!M$39="","",'[3]Base Dados'!M$39) -> 0.023 | AN35: =IF('[3]Base Dados'!M$38="","",'[3]Base Dados'!M$38) -> 0.0217572904 | AO35: 0.02340755692 | AP35: 0.9459691479 | AR35: 9 | AS35: SET | AT35: =IF('[3]Base Dados'!M$29="","",'[3]Base Dados'!M$29) -> 0.025 | AU35: =IF('[3]Base Dados'!M$28="","",'[3]Base Dados'!M$28) -> 0.0300990365 | AV35: 0.02693016274 | AW35: 1.20396146 | AY35: 9 | AZ35: SET | BA35: =IF('[3]Base Dados'!M$44="","",'[3]Base Dados'!M$44) -> 0.03 | BB35: ='[3]Base Dados'!M$43 -> 0.02832054625 | BC35: 0.02726968024 | BD35: 0.9440182085
B36: 10 | C36: OUT | D36: =IF('[3]Base Dados'!N$94="","",'[3]Base Dados'!N$94) -> 0.523224198 | E36: =IF('[3]Base Dados'!N$90="","",'[3]Base Dados'!N$93) -> 0.918 | F36: 0.7689166667 | G36: 1.75450601 | I36: 10 | J36: OUT | K36: =IF('[3]Base Dados'!N$100="","",'[3]Base Dados'!N$100) -> 0.656812854 | L36: =IF('[3]Base Dados'!N$98="","",'[3]Base Dados'!N$99) -> 0.981 | M36: 0.9798 | N36: 1.493576129 | P36: 10 | Q36: OUT | R36: 0.74 | S36: 0.782752 | T36: 0.7504771326 | U36: 1.057772973 | W36: 10 | X36: OUT | Y36: =IF('[3]Base Dados'!O$106="","",'[3]Base Dados'!O$106) -> 0 | Z36: =IF('[3]Base Dados'!O$103="","",'[3]Base Dados'!O$105) ->  | AA36: 0.9721111111 | AD36: 10 | AE36: OUT | AF36: =IF('[3]Base Dados'!N$34="","",'[3]Base Dados'!N$34) -> 0.058 | AG36: =IF('[3]Base Dados'!N$33="","",'[3]Base Dados'!N$33) -> 0.08149459993 | AH36: 0.07571859653 | AI36: 1.405079309 | AK36: 10 | AL36: OUT | AM36: =IF('[3]Base Dados'!N$39="","",'[3]Base Dados'!N$39) -> 0.023 | AN36: =IF('[3]Base Dados'!N$38="","",'[3]Base Dados'!N$38) -> 0.01883080382 | AO36: 0.02340755692 | AP36: 0.818730601 | AR36: 10 | AS36: OUT | AT36: =IF('[3]Base Dados'!N$29="","",'[3]Base Dados'!N$29) -> 0.025 | AU36: =IF('[3]Base Dados'!N$28="","",'[3]Base Dados'!N$28) -> 0.02420976173 | AV36: 0.02693016274 | AW36: 0.9683904691 | AY36: 10 | AZ36: OUT | BA36: =IF('[3]Base Dados'!N$44="","",'[3]Base Dados'!N$44) -> 0.03 | BB36: ='[3]Base Dados'!N$43 -> 0.02447682263 | BC36: 0.02726968024 | BD36: 0.8158940877
B37: 11 | C37: NOV | D37: =IF('[3]Base Dados'!O$94="","",'[3]Base Dados'!O$94) -> 0 | E37: =IF('[3]Base Dados'!O$90="","",'[3]Base Dados'!O$93) -> 0 | F37: 0.7689166667 | I37: 11 | J37: NOV | K37: =IF('[3]Base Dados'!O$100="","",'[3]Base Dados'!O$100) -> 0 | L37: =IF('[3]Base Dados'!O$98="","",'[3]Base Dados'!O$99) ->  | M37: 0.9798 | P37: 11 | Q37: NOV | R37: 0.76 | T37: 0.7504771326 | W37: 11 | X37: NOV | Y37: =IF('[3]Base Dados'!P$106="","",'[3]Base Dados'!P$106) -> 0 | Z37: =IF('[3]Base Dados'!P$103="","",'[3]Base Dados'!P$105) ->  | AA37: 0.9721111111 | AD37: 11 | AE37: NOV | AF37: =IF('[3]Base Dados'!O$34="","",'[3]Base Dados'!O$34) -> 0.058 | AG37: =IF('[3]Base Dados'!O$33="","",'[3]Base Dados'!O$33) ->  | AH37: 0.07571859653 | AK37: 11 | AL37: NOV | AM37: =IF('[3]Base Dados'!O$39="","",'[3]Base Dados'!O$39) -> 0.023 | AN37: =IF('[3]Base Dados'!O$38="","",'[3]Base Dados'!O$38) ->  | AO37: 0.02340755692 | AR37: 11 | AS37: NOV | AT37: =IF('[3]Base Dados'!O$29="","",'[3]Base Dados'!O$29) -> 0.023 | AU37: =IF('[3]Base Dados'!O$28="","",'[3]Base Dados'!O$28) ->  | AV37: 0.02693016274 | AY37: 11 | AZ37: NOV | BA37: =IF('[3]Base Dados'!O$44="","",'[3]Base Dados'!O$44) -> 0.03 | BB37: ='[3]Base Dados'!O$43 ->  | BC37: 0.02726968024
B38: 12 | C38: DEZ | D38: =IF('[3]Base Dados'!P$94="","",'[3]Base Dados'!P$94) -> 0 | E38: =IF('[3]Base Dados'!P$90="","",'[3]Base Dados'!P$93) -> 0 | F38: 0.7689166667 | I38: 12 | J38: DEZ | K38: =IF('[3]Base Dados'!P$100="","",'[3]Base Dados'!P$100) -> 0 | L38: =IF('[3]Base Dados'!P$98="","",'[3]Base Dados'!P$99) ->  | M38: 0.9798 | P38: 12 | Q38: DEZ | R38: 0.77 | T38: 0.7504771326 | W38: 12 | X38: DEZ | Y38: =IF('[3]Base Dados'!Q$106="","",'[3]Base Dados'!Q$106) -> 0 | Z38: =IF('[3]Base Dados'!Q$103="","",'[3]Base Dados'!Q$105) ->  | AA38: 0.9721111111 | AD38: 12 | AE38: DEZ | AF38: =IF('[3]Base Dados'!P$34="","",'[3]Base Dados'!P$34) -> 0.058 | AG38: =IF('[3]Base Dados'!P$33="","",'[3]Base Dados'!P$33) ->  | AH38: 0.07571859653 | AK38: 12 | AL38: DEZ | AM38: =IF('[3]Base Dados'!P$39="","",'[3]Base Dados'!P$39) -> 0.023 | AN38: =IF('[3]Base Dados'!P$38="","",'[3]Base Dados'!P$38) ->  | AO38: 0.02340755692 | AR38: 12 | AS38: DEZ | AT38: =IF('[3]Base Dados'!P$29="","",'[3]Base Dados'!P$29) -> 0.023 | AU38: =IF('[3]Base Dados'!P$28="","",'[3]Base Dados'!P$28) ->  | AV38: 0.02693016274 | AY38: 12 | AZ38: DEZ | BA38: =IF('[3]Base Dados'!P$44="","",'[3]Base Dados'!P$44) -> 0.03 | BB38: ='[3]Base Dados'!P$43 ->  | BC38: 0.02726968024
B40: INDICADOR DO PCP | P40: INDICADOR DE DESENVOLVIMENTO | AD40: INDICADORES DE RH
B42: OTIF | I42: TAXA DE REPROGRAMAÇÃO | P42: PROJETOS ENCERRADOS X CRONOGRAMA | W42: EXECUÇÃO DE TESTES | AD42: ABSENTEÍSMO | AK42: TREINAMENTO
B44: Mês Selecionado | E44: =E6 -> 9 | F44: Status Mês | G44: =VLOOKUP($E$6,$B$8:$G$19,6,FALSE) -> 0.95 | I44: Mês Selecionado | L44: =E44 -> 9 | M44: Status Mês | N44: =VLOOKUP(L44,I46:N57,6,FALSE) -> 0.52 | P44: Mês Selecionado | S44: =E6 -> 9 | T44: Status Mês | U44: =VLOOKUP($E$6,$B$8:$G$19,6,FALSE) -> 0.95 | W44: Mês Selecionado | Z44: =S44 -> 9 | AA44: Status Mês | AB44: =VLOOKUP(Z44,W46:AB57,6,FALSE) -> 1.112006446 | AD44: Mês Selecionado | AG44: =E6 -> 9 | AH44: Status Mês | AI44: =VLOOKUP($E$6,$B$8:$G$19,6,FALSE) -> 0.95 | AK44: Mês Selecionado | AN44: =AG44 -> 9 | AO44: Status Mês | AP44: =VLOOKUP(AN44,AK46:AP57,6,FALSE) -> 1.141768293
D45: Meta | E45: Realizado | F45: Média | G45: Status | K45: Meta | L45: Realizado | M45: Média | N45: Status | R45: Meta | S45: Realizado | T45: Média | U45: Status | Y45: Meta | Z45: Realizado | AA45: Média | AB45: Status | AF45: Meta | AG45: Realizado | AH45: Média | AI45: Status | AM45: Meta | AN45: Realizado | AO45: Média | AP45: Status
B46: 1 | C46: JAN | D46: =IF('[3]Base Dados'!F$199="","",'[3]Base Dados'!F$199) -> 0.5 | E46: =IF('[3]Base Dados'!F$198="","",'[3]Base Dados'!F$198) -> 0.367781155 | F46: =AVERAGE(E46:E57) -> 0.7767304662 | G46: =IF(E46="","",E46/D46) -> 0.73556231 | I46: 1 | J46: JAN | K46: =IF('[3]Base Dados'!F$240="","",'[3]Base Dados'!F$240) -> 0.5 | L46: =IF('[3]Base Dados'!F$239="","",'[3]Base Dados'!F$239) -> 0.283 | M46: =AVERAGE(L46:L57) -> 0.1853333333 | N46: =IF(L46="","",L46/K46) -> 0.566 | P46: 1 | Q46: JAN | R46: =IF('[3]Base Dados'!F$345="","",'[3]Base Dados'!F$345) -> 0.85 | S46: =IF('[3]Base Dados'!F$344="","",'[3]Base Dados'!F$344) -> 0.8181818182 | T46: =AVERAGE(S46:S57) -> 0.9575757576 | U46: =IF(S46="","",S46/R46) -> 0.9625668449 | W46: 1 | X46: JAN | Y46: 0.85 | Z46: 0.9433962264 | AA46: =AVERAGE(Z46:Z57) -> 0.7433066878 | AB46: =IF(Z46="","",Z46/Y46) -> 1.109877913 | AD46: 1 | AE46: JAN | AF46: 0.02 | AG46: 0.005575396825 | AH46: =AVERAGE(AG46:AG57) -> 0.02272177828 | AI46: =IF(AG46="","",AG46/AF46) -> 0.2787698413 | AK46: 1 | AL46: JAN | AM46: 0.5 | AN46: 2.423076923 | AO46: =AVERAGE(AN46:AN57) -> 0.6200863787 | AP46: =IF(AN46="","",AN46/AM46) -> 4.846153846
B47: 2 | C47: FEV | D47: =IF('[3]Base Dados'!G$199="","",'[3]Base Dados'!G$199) -> 0.6 | E47: =IF('[3]Base Dados'!G$198="","",'[3]Base Dados'!G$198) -> 0.4257703081 | F47: =F46 -> 0.7767304662 | G47: 0.7096171802 | I47: 2 | J47: FEV | K47: =IF('[3]Base Dados'!G$240="","",'[3]Base Dados'!G$240) -> 0.4 | L47: =IF('[3]Base Dados'!G$239="","",'[3]Base Dados'!G$239) -> 0.257 | M47: =M46 -> 0.1853333333 | N47: 0.6425 | P47: 2 | Q47: FEV | R47: =IF('[3]Base Dados'!G$345="","",'[3]Base Dados'!G$345) -> 0.85 | S47: =IF('[3]Base Dados'!G$344="","",'[3]Base Dados'!G$344) -> 0.9 | T47: =T46 -> 0.9575757576 | U47: 1.058823529 | W47: 2 | X47: FEV | Y47: 0.85 | Z47: 0.6111111111 | AA47: =AA46 -> 0.7433066878 | AB47: 0.7189542484 | AD47: 2 | AE47: FEV | AF47: 0.02 | AG47: 0.008879528986 | AH47: =AH46 -> 0.02272177828 | AI47: 0.4439764493 | AK47: 2 | AL47: FEV | AM47: 0.5 | AN47: 0.9362535211 | AO47: =AO46 -> 0.6200863787 | AP47: 1.872507042
B48: 3 | C48: MAR | D48: =IF('[3]Base Dados'!H$199="","",'[3]Base Dados'!H$199) -> 0.7 | E48: =IF('[3]Base Dados'!H$198="","",'[3]Base Dados'!H$198) -> 0.7894736842 | F48: =F47 -> 0.7767304662 | G48: 1.127819549 | I48: 3 | J48: MAR | K48: =IF('[3]Base Dados'!H$240="","",'[3]Base Dados'!H$240) -> 0.3 | L48: =IF('[3]Base Dados'!H$239="","",'[3]Base Dados'!H$239) -> 0.271 | M48: =M47 -> 0.1853333333 | N48: 0.9033333333 | P48: 3 | Q48: MAR | R48: =IF('[3]Base Dados'!H$345="","",'[3]Base Dados'!H$345) -> 0.85 | S48: =IF('[3]Base Dados'!H$344="","",'[3]Base Dados'!H$344) -> 1 | T48: =T47 -> 0.9575757576 | U48: 1.176470588 | W48: 3 | X48: MAR | Y48: 0.85 | Z48: 0.362745098 | AA48: =AA47 -> 0.7433066878 | AB48: 0.4267589389 | AD48: 3 | AE48: MAR | AF48: 0.02 | AG48: 0.01547814553 | AH48: =AH47 -> 0.02272177828 | AI48: 0.7739072764 | AK48: 3 | AL48: MAR | AM48: 0.5 | AN48: 0.3920882353 | AO48: =AO47 -> 0.6200863787 | AP48: 0.7841764706
B49: 4 | C49: ABR | D49: =IF('[3]Base Dados'!I$199="","",'[3]Base Dados'!I$199) -> 0.8 | E49: =IF('[3]Base Dados'!I$198="","",'[3]Base Dados'!I$198) -> 0.8024691358 | F49: 0.7767304662 | G49: 1.00308642 | I49: 4 | J49: ABR | K49: =IF('[3]Base Dados'!I$240="","",'[3]Base Dados'!I$240) -> 0.3 | L49: =IF('[3]Base Dados'!I$239="","",'[3]Base Dados'!I$239) -> 0.211 | M49: 0.1853333333 | N49: 0.7033333333 | P49: 4 | Q49: ABR | R49: =IF('[3]Base Dados'!I$345="","",'[3]Base Dados'!I$345) -> 0.85 | S49: =IF('[3]Base Dados'!I$344="","",'[3]Base Dados'!I$344) -> 1 | T49: 0.9575757576 | U49: 1.176470588 | W49: 4 | X49: ABR | Y49: 0.85 | Z49: 0.4230769231 | AA49: 0.7433066878 | AB49: 0.4977375566 | AD49: 4 | AE49: ABR | AF49: 0.02 | AG49: 0.02401652554 | AH49: 0.02272177828 | AI49: 1.200826277 | AK49: 4 | AL49: ABR | AM49: 0.5 | AN49: 0.005255255255 | AO49: 0.6200863787 | AP49: 0.01051051051
B50: 5 | C50: MAI | D50: =IF('[3]Base Dados'!J$199="","",'[3]Base Dados'!J$199) -> 0.9 | E50: =IF('[3]Base Dados'!J$198="","",'[3]Base Dados'!J$198) -> 0.7992277992 | F50: 0.7767304662 | G50: 0.888030888 | I50: 5 | J50: MAI | K50: =IF('[3]Base Dados'!J$240="","",'[3]Base Dados'!J$240) -> 0.3 | L50: =IF('[3]Base Dados'!J$239="","",'[3]Base Dados'!J$239) -> 0.19 | M50: 0.1853333333 | N50: 0.6333333333 | P50: 5 | Q50: MAI | R50: =IF('[3]Base Dados'!J$345="","",'[3]Base Dados'!J$345) -> 0.85 | S50: =IF('[3]Base Dados'!J$344="","",'[3]Base Dados'!J$344) -> 0.9 | T50: 0.9575757576 | U50: 1.058823529 | W50: 5 | X50: MAI | Y50: 0.85 | Z50: 0.8309859155 | AA50: 0.7433066878 | AB50: 0.9776304888 | AD50: 5 | AE50: MAI | AF50: 0.02 | AG50: 0.01626293573 | AH50: 0.02272177828 | AI50: 0.8131467865 | AK50: 5 | AL50: MAI | AM50: 0.5 | AN50: 0.3814201183 | AO50: 0.6200863787 | AP50: 0.7628402367
B51: 6 | C51: JUN | D51: =IF('[3]Base Dados'!K$199="","",'[3]Base Dados'!K$199) -> 0.91 | E51: =IF('[3]Base Dados'!K$198="","",'[3]Base Dados'!K$198) -> 0.9407665505 | F51: 0.7767304662 | G51: 1.033809396 | I51: 6 | J51: JUN | K51: =IF('[3]Base Dados'!K$240="","",'[3]Base Dados'!K$240) -> 0.2 | L51: =IF('[3]Base Dados'!K$239="","",'[3]Base Dados'!K$239) -> 0.071 | M51: 0.1853333333 | N51: 0.355 | P51: 6 | Q51: JUN | R51: =IF('[3]Base Dados'!K$345="","",'[3]Base Dados'!K$345) -> 0.85 | S51: =IF('[3]Base Dados'!K$344="","",'[3]Base Dados'!K$344) -> 1 | T51: 0.9575757576 | U51: 1.176470588 | W51: 6 | X51: JUN | Y51: 0.85 | Z51: 0.8923076923 | AA51: 0.7433066878 | AB51: 1.049773756 | AD51: 6 | AE51: JUN | AF51: 0.02 | AG51: 0.01696696157 | AH51: 0.02272177828 | AI51: 0.8483480785 | AK51: 6 | AL51: JUN | AM51: 0.5 | AN51: 0.2692307692 | AO51: 0.6200863787 | AP51: 0.5384615385
B52: 7 | C52: JUL | D52: =IF('[3]Base Dados'!L$199="","",'[3]Base Dados'!L$199) -> 0.93 | E52: =IF('[3]Base Dados'!L$198="","",'[3]Base Dados'!L$198) -> 0.9349845201 | F52: 0.7767304662 | G52: 1.005359699 | I52: 7 | J52: JUL | K52: =IF('[3]Base Dados'!L$240="","",'[3]Base Dados'!L$240) -> 0.2 | L52: =IF('[3]Base Dados'!L$239="","",'[3]Base Dados'!L$239) -> 0.149 | M52: 0.1853333333 | N52: 0.745 | P52: 7 | Q52: JUL | R52: =IF('[3]Base Dados'!L$345="","",'[3]Base Dados'!L$345) -> 0.85 | S52: =IF('[3]Base Dados'!L$344="","",'[3]Base Dados'!L$344) -> 1 | T52: 0.9575757576 | U52: 1.176470588 | W52: 7 | X52: JUL | Y52: 0.85 | Z52: 0.8732394366 | AA52: 0.7433066878 | AB52: 1.027340514 | AD52: 7 | AE52: JUL | AF52: 0.02 | AG52: 0.02797876712 | AH52: 0.02272177828 | AI52: 1.398938356 | AK52: 7 | AL52: JUL | AM52: 0.5 | AN52: 0.3625377644 | AO52: 0.6200863787 | AP52: 0.7250755287
B53: 8 | C53: AGO | D53: =IF('[3]Base Dados'!M$199="","",'[3]Base Dados'!M$199) -> 0.95 | E53: =IF('[3]Base Dados'!M$198="","",'[3]Base Dados'!M$198) -> 0.9766763848 | F53: 0.7767304662 | G53: 1.028080405 | I53: 8 | J53: AGO | K53: =IF('[3]Base Dados'!M$240="","",'[3]Base Dados'!M$240) -> 0.2 | L53: =IF('[3]Base Dados'!M$239="","",'[3]Base Dados'!M$239) -> 0.132 | M53: 0.1853333333 | N53: 0.66 | P53: 8 | Q53: AGO | R53: =IF('[3]Base Dados'!M$345="","",'[3]Base Dados'!M$345) -> 0.85 | S53: =IF('[3]Base Dados'!M$344="","",'[3]Base Dados'!M$344) -> 1 | T53: 0.9575757576 | U53: 1.176470588 | W53: 8 | X53: AGO | Y53: 0.85 | Z53: 0.8076923077 | AA53: 0.7433066878 | AB53: 0.9502262443 | AD53: 8 | AE53: AGO | AF53: 0.02 | AG53: 0.05168266485 | AH53: 0.02272177828 | AI53: 2.584133243 | AK53: 8 | AL53: AGO | AM53: 0.5 | AN53: 0.2400306748 | AO53: 0.6200863787 | AP53: 0.4800613497
B54: 9 | C54: SET | D54: =IF('[3]Base Dados'!N$199="","",'[3]Base Dados'!N$199) -> 0.95 | E54: =IF('[3]Base Dados'!N$198="","",'[3]Base Dados'!N$198) -> 0.9534246575 | F54: 0.7767304662 | G54: 1.003604903 | I54: 9 | J54: SET | K54: =IF('[3]Base Dados'!N$240="","",'[3]Base Dados'!N$240) -> 0.2 | L54: =IF('[3]Base Dados'!N$239="","",'[3]Base Dados'!N$239) -> 0.104 | M54: 0.1853333333 | N54: 0.52 | P54: 9 | Q54: SET | R54: =IF('[3]Base Dados'!N$345="","",'[3]Base Dados'!N$345) -> 0.85 | S54: =IF('[3]Base Dados'!N$344="","",'[3]Base Dados'!N$344) -> 1 | T54: 0.9575757576 | U54: 1.176470588 | W54: 9 | X54: SET | Y54: 0.85 | Z54: 0.9452054795 | AA54: 0.7433066878 | AB54: 1.112006446 | AD54: 9 | AE54: SET | AF54: 0.02 | AG54: 0.03765507839 | AH54: 0.02272177828 | AI54: 1.88275392 | AK54: 9 | AL54: SET | AM54: 0.5 | AN54: 0.5708841463 | AO54: 0.6200863787 | AP54: 1.141768293
B55: 10 | C55: OUT | D55: =IF('[3]Base Dados'!O$199="","",'[3]Base Dados'!O$199) -> 0.95 | E55: =IF('[3]Base Dados'!O$198="","",'[3]Base Dados'!O$198) ->  | F55: 0.7767304662 | I55: 10 | J55: OUT | K55: =IF('[3]Base Dados'!O$240="","",'[3]Base Dados'!O$240) ->  | L55: =IF('[3]Base Dados'!O$239="","",'[3]Base Dados'!O$239) ->  | M55: 0.1853333333 | P55: 10 | Q55: OUT | R55: =IF('[3]Base Dados'!O$345="","",'[3]Base Dados'!O$345) -> 0.85 | S55: =IF('[3]Base Dados'!O$344="","",'[3]Base Dados'!O$344) ->  | T55: 0.9575757576 | W55: 10 | X55: OUT | Y55: 0.85 | AA55: 0.7433066878 | AD55: 10 | AE55: OUT | AF55: 0.02 | AH55: 0.02272177828 | AK55: 10 | AL55: OUT | AM55: 0.5 | AO55: 0.6200863787
B56: 11 | C56: NOV | D56: =IF('[3]Base Dados'!P$199="","",'[3]Base Dados'!P$199) -> 0.95 | E56: =IF('[3]Base Dados'!P$198="","",'[3]Base Dados'!P$198) ->  | F56: 0.7767304662 | I56: 11 | J56: NOV | K56: =IF('[3]Base Dados'!P$240="","",'[3]Base Dados'!P$240) ->  | L56: =IF('[3]Base Dados'!P$239="","",'[3]Base Dados'!P$239) ->  | M56: 0.1853333333 | P56: 11 | Q56: NOV | R56: =IF('[3]Base Dados'!P$345="","",'[3]Base Dados'!P$345) -> 0.85 | S56: =IF('[3]Base Dados'!P$344="","",'[3]Base Dados'!P$344) ->  | T56: 0.9575757576 | W56: 11 | X56: NOV | Y56: 0.85 | AA56: 0.7433066878 | AD56: 11 | AE56: NOV | AF56: 0.02 | AH56: 0.02272177828 | AK56: 11 | AL56: NOV | AM56: 0.5 | AO56: 0.6200863787
B57: 12 | C57: DEZ | D57: =IF('[3]Base Dados'!Q$199="","",'[3]Base Dados'!Q$199) -> 0.95 | E57: =IF('[3]Base Dados'!Q$198="","",'[3]Base Dados'!Q$198) ->  | F57: 0.7767304662 | I57: 12 | J57: DEZ | K57: =IF('[3]Base Dados'!Q$240="","",'[3]Base Dados'!Q$240) ->  | L57: =IF('[3]Base Dados'!Q$239="","",'[3]Base Dados'!Q$239) ->  | M57: 0.1853333333 | P57: 12 | Q57: DEZ | R57: =IF('[3]Base Dados'!Q$345="","",'[3]Base Dados'!Q$345) -> 0.85 | S57: =IF('[3]Base Dados'!Q$344="","",'[3]Base Dados'!Q$344) ->  | T57: 0.9575757576 | W57: 12 | X57: DEZ | Y57: 0.85 | AA57: 0.7433066878 | AD57: 12 | AE57: DEZ | AF57: 0.02 | AH57: 0.02272177828 | AK57: 12 | AL57: DEZ | AM57: 0.5 | AO57: 0.6200863787

Sheet Data (hidden)
A1: Realizado
A2: Mês | B2: SATISFAÇÃO DE CLIENTE NPS | C2: FATURAMENTO MENSAL | D2: EFICIÊNCIA DE MÃO DE OBRA | E2: REJEIÇÃO INTERNA | F2: HORAS DE RETRABALHO | G2: OEE SOPRO | H2: OEE INJEÇÃO | I2: OEE PET | J2: OEE DECORAÇÃO | K2: REFUGO SOPRO | L2: REFUGO INJEÇÃO | M2: REFUGO PET | N2: REFUGO DECORAÇÃO | O2: RNC DE CLIENTE | P2: CUSTO NÃO QUALIDADE | Q2: CERTIFICAÇÃO ISO 9001 | R2: OTIF | S2: TAXA DE REPROGRAMAÇÃO | T2: PROJETOS ENCERRADOS X CRONOGRAMA | U2: EXECUÇÃO DE TESTES | V2: ABSENTEÍSMO | W2: TREINAMENTO
A3: JAN | B3: =Lançamento!E8 -> 23 | C3: =Lançamento!L8 -> 5920749 | D3: =Lançamento!S8 -> 0.7346440683 | E3: =Lançamento!Z8 -> 0.03325 | F3: =Lançamento!AG8 -> 521 | G3: =Lançamento!E27 -> 0.929 | H3: =Lançamento!L27 -> 0.968 | I3: =Lançamento!S27 -> 0.694011038 | J3: =Lançamento!Z27 -> 0.969 | K3: =Lançamento!AG27 -> 0.08052887453 | L3: =Lançamento!AN27 -> 0.03463277823 | M3: =Lançamento!AU27 -> 0.02488685704 | N3: =Lançamento!BB27 -> 0.02565711379 | O3: =Lançamento!AN8 -> 2 | P3: =Lançamento!AU8 -> 0.0003 | Q3: =Lançamento!BB8 -> 0.7 | R3: =Lançamento!E46 -> 0.367781155 | S3: =Lançamento!L46 -> 0.283 | T3: =Lançamento!S46 -> 0.8181818182 | U3: =Lançamento!Z46 -> 0.9433962264 | V3: =Lançamento!AG46 -> 0.005575396825 | W3: =Lançamento!AN46 -> 2.423076923
A4: FEV | B4: =Lançamento!E9 -> 23 | C4: =Lançamento!L9 -> 6728756 | D4: =Lançamento!S9 -> 0.7738724293 | E4: =Lançamento!Z9 -> 0.0355 | F4: =Lançamento!AG9 -> 1006.21 | G4: =Lançamento!E28 -> 0.917 | H4: =Lançamento!L28 -> 0.978 | I4: =Lançamento!S28 -> 0.712052208 | J4: =Lançamento!Z28 -> 0.968 | K4: =Lançamento!AG28 -> 0.08358118884 | L4: =Lançamento!AN28 -> 0.02124082782 | M4: =Lançamento!AU28 -> 0.0283695021 | N4: =Lançamento!BB28 -> 0.03062155538 | O4: =Lançamento!AN9 -> 2 | P4: =Lançamento!AU9 -> 0.0039 | Q4: =Lançamento!BB9 -> 0.8 | R4: =Lançamento!E47 -> 0.4257703081 | S4: =Lançamento!L47 -> 0.257 | T4: =Lançamento!S47 -> 0.9 | U4: =Lançamento!Z47 -> 0.6111111111 | V4: =Lançamento!AG47 -> 0.008879528986 | W4: =Lançamento!AN47 -> 0.9362535211
A5: MAR | B5: =Lançamento!E10 -> 23 | C5: =Lançamento!L10 -> 6056838 | D5: =Lançamento!S10 -> 0.8422044361 | E5: =Lançamento!Z10 -> 0.026 | F5: =Lançamento!AG10 -> 789.62 | G5: =Lançamento!E29 -> 0.822 | H5: =Lançamento!L29 -> 0.98 | I5: =Lançamento!S29 -> 0.68766054 | J5: =Lançamento!Z29 -> 0.964 | K5: =Lançamento!AG29 -> 0.08217167986 | L5: =Lançamento!AN29 -> 0.02604000443 | M5: =Lançamento!AU29 -> 0.03181490413 | N5: =Lançamento!BB29 -> 0.03180750305 | O5: =Lançamento!AN10 -> 6 | P5: =Lançamento!AU10 -> 0.0043 | Q5: =Lançamento!BB10 -> 0.9 | R5: =Lançamento!E48 -> 0.7894736842 | S5: =Lançamento!L48 -> 0.271 | T5: =Lançamento!S48 -> 1 | U5: =Lançamento!Z48 -> 0.362745098 | V5: =Lançamento!AG48 -> 0.01547814553 | W5: =Lançamento!AN48 -> 0.3920882353
A6: ABR | B6: =Lançamento!E11 -> 23 | C6: =Lançamento!L11 -> 7056727 | D6: =Lançamento!S11 -> 0.8601774155 | E6: =Lançamento!Z11 -> 0.0275 | F6: =Lançamento!AG11 -> 148.72 | G6: =Lançamento!E30 -> 0.94 | H6: =Lançamento!L30 -> 0.972 | I6: =Lançamento!S30 -> 0.7738216 | J6: =Lançamento!Z30 -> 0.976 | K6: =Lançamento!AG30 -> 0.06016862402 | L6: =Lançamento!AN30 -> 0.02820726406 | M6: =Lançamento!AU30 -> 0.02434321556 | N6: =Lançamento!BB30 -> 0.03555156227 | O6: =Lançamento!AN11 -> 3 | P6: =Lançamento!AU11 -> 0.0031 | Q6: =Lançamento!BB11 -> 0.9 | R6: =Lançamento!E49 -> 0.8024691358 | S6: =Lançamento!L49 -> 0.211 | T6: =Lançamento!S49 -> 1 | U6: =Lançamento!Z49 -> 0.4230769231 | V6: =Lançamento!AG49 -> 0.02401652554 | W6: =Lançamento!AN49 -> 0.005255255255
A7: MAI | B7: =Lançamento!E12 -> 23 | C7: =Lançamento!L12 -> 6779006.26 | D7: =Lançamento!S12 -> 0.9057103007 | E7: =Lançamento!Z12 -> 0.0345 | F7: =Lançamento!AG12 -> 519.56 | G7: =Lançamento!E31 -> 0.948 | H7: =Lançamento!L31 -> 0.973 | I7: =Lançamento!S31 -> 0.80777088 | J7: =Lançamento!Z31 -> 0.978 | K7: =Lançamento!AG31 -> 0.05193994857 | L7: =Lançamento!AN31 -> 0.02649851212 | M7: =Lançamento!AU31 -> 0.02008483631 | N7: =Lançamento!BB31 -> 0.02376055095 | O7: =Lançamento!AN12 -> 5 | P7: =Lançamento!AU12 -> 0.0045 | Q7: =Lançamento!BB12 -> 0.95 | R7: =Lançamento!E50 -> 0.7992277992 | S7: =Lançamento!L50 -> 0.19 | T7: =Lançamento!S50 -> 0.9 | U7: =Lançamento!Z50 -> 0.8309859155 | V7: =Lançamento!AG50 -> 0.01626293573 | W7: =Lançamento!AN50 -> 0.3814201183
A8: JUN | B8: =Lançamento!E13 -> 23 | C8: =Lançamento!L13 -> 6700902 | D8: =Lançamento!S13 -> 0.9004583586 | E8: =Lançamento!Z13 -> 0.038 | F8: =Lançamento!AG13 -> 1192 | G8: =Lançamento!E32 -> 0.998 | H8: =Lançamento!L32 -> 0.998 | I8: =Lançamento!S32 -> 0.770453856 | J8: =Lançamento!Z32 -> 0.972 | K8: =Lançamento!AG32 -> 0.07255441581 | L8: =Lançamento!AN32 -> 0.02675585284 | M8: =Lançamento!AU32 -> 0.0276764094 | N8: =Lançamento!BB32 -> 0.02222986686 | O8: =Lançamento!AN13 -> 9 | P8: =Lançamento!AU13 -> 0.0567 | Q8: =Lançamento!BB13 -> 0.95 | R8: =Lançamento!E51 -> 0.9407665505 | S8: =Lançamento!L51 -> 0.071 | T8: =Lançamento!S51 -> 1 | U8: =Lançamento!Z51 -> 0.8923076923 | V8: =Lançamento!AG51 -> 0.01696696157 | W8: =Lançamento!AN51 -> 0.2692307692
A9: JUL | B9: =Lançamento!E14 -> 57 | C9: =Lançamento!L14 -> 7395049 | D9: =Lançamento!S14 -> 0.8526726774 | E9: =Lançamento!Z14 -> 0.078 | F9: =Lançamento!AG14 -> 1445 | G9: =Lançamento!E33 -> 0.937 | H9: =Lançamento!L33 -> 0.985 | I9: =Lançamento!S33 -> 0.729128304 | J9: =Lançamento!Z33 -> 0.974 | K9: =Lançamento!AG33 -> 0.06270278572 | L9: =Lançamento!AN33 -> 0.01530167288 | M9: =Lançamento!AU33 -> 0.02823995661 | N9: =Lançamento!BB33 -> 0.02457036954 | O9: =Lançamento!AN14 -> 5 | P9: =Lançamento!AU14 -> 0.0291 | Q9: =Lançamento!BB14 -> 1 | R9: =Lançamento!E52 -> 0.9349845201 | S9: =Lançamento!L52 -> 0.149 | T9: =Lançamento!S52 -> 1 | U9: =Lançamento!Z52 -> 0.8732394366 | V9: =Lançamento!AG52 -> 0.02797876712 | W9: =Lançamento!AN52 -> 0.3625377644
A10: AGO | B10: =Lançamento!E15 -> 57 | C10: =Lançamento!L15 -> 7010077 | D10: =Lançamento!S15 -> 0.7641126111 | E10: =Lançamento!Z15 -> 0.06075 | F10: =Lançamento!AG15 -> 623 | G10: =Lançamento!E34 -> 0.912 | H10: =Lançamento!L34 -> 0.985 | I10: =Lançamento!S34 -> 0.75150944 | J10: =Lançamento!Z34 -> 0.972 | K10: =Lançamento!AG34 -> 0.08787331096 | L10: =Lançamento!AN34 -> 0.01481056257 | M10: =Lançamento!AU34 -> 0.029577148 | N10: =Lançamento!BB34 -> 0.02570091165 | O10: =Lançamento!AN15 -> 2 | P10: =Lançamento!AU15 -> 0.0011 | Q10: =Lançamento!BB15 -> 1 | R10: =Lançamento!E53 -> 0.9766763848 | S10: =Lançamento!L53 -> 0.132 | T10: =Lançamento!S53 -> 1 | U10: =Lançamento!Z53 -> 0.8076923077 | V10: =Lançamento!AG53 -> 0.05168266485 | W10: =Lançamento!AN53 -> 0.2400306748
A11: SET | B11: =Lançamento!E16 -> 57 | C11: =Lançamento!L16 -> 7565275 | D11: =Lançamento!S16 -> 0.9193826062 | E11: =Lançamento!Z16 -> 0.0525 | F11: =Lançamento!AG16 -> 691 | G11: =Lançamento!E35 -> 0.906 | H11: =Lançamento!L35 -> 0.978 | I11: =Lançamento!S35 -> 0.79561146 | J11: =Lançamento!Z35 -> 0.976 | K11: =Lançamento!AG35 -> 0.0941705371 | L11: =Lançamento!AN35 -> 0.0217572904 | M11: =Lançamento!AU35 -> 0.0300990365 | N11: =Lançamento!BB35 -> 0.02832054625 | O11: =Lançamento!AN16 -> 2 | P11: =Lançamento!AU16 -> 0.0041 | Q11: =Lançamento!BB16 -> 1 | R11: =Lançamento!E54 -> 0.9534246575 | S11: =Lançamento!L54 -> 0.104 | T11: =Lançamento!S54 -> 1 | U11: =Lançamento!Z54 -> 0.9452054795 | V11: =Lançamento!AG54 -> 0.03765507839 | W11: =Lançamento!AN54 -> 0.5708841463
A12: OUT | B12: =Lançamento!E17 ->  | C12: =Lançamento!L17 ->  | D12: =Lançamento!S17 ->  | E12: =Lançamento!Z17 ->  | F12: =Lançamento!AG17 ->  | G12: =Lançamento!E36 -> 0.918 | H12: =Lançamento!L36 -> 0.981 | I12: =Lançamento!S36 -> 0.782752 | J12: =Lançamento!Z36 ->  | K12: =Lançamento!AG36 -> 0.08149459993 | L12: =Lançamento!AN36 -> 0.01883080382 | M12: =Lançamento!AU36 -> 0.02420976173 | N12: =Lançamento!BB36 -> 0.02447682263 | O12: =Lançamento!AN17 ->  | P12: =Lançamento!AU17 ->  | Q12: =Lançamento!BB17 -> 1 | R12: =Lançamento!E55 ->  | S12: =Lançamento!L55 ->  | T12: =Lançamento!S55 ->  | U12: =Lançamento!Z55 ->  | V12: =Lançamento!AG55 ->  | W12: =Lançamento!AN55 -> 
A13: NOV | B13: =Lançamento!E18 ->  | C13: =Lançamento!L18 ->  | D13: =Lançamento!S18 ->  | E13: =Lançamento!Z18 ->  | F13: =Lançamento!AG18 ->  | G13: =Lançamento!E37 -> 0 | H13: =Lançamento!L37 ->  | I13: =Lançamento!S37 ->  | J13: =Lançamento!Z37 ->  | K13: =Lançamento!AG37 ->  | L13: =Lançamento!AN37 ->  | M13: =Lançamento!AU37 ->  | N13: =Lançamento!BB37 ->  | O13: =Lançamento!AN18 ->  | P13: =Lançamento!AU18 ->  | Q13: =Lançamento!BB18 -> 1 | R13: =Lançamento!E56 ->  | S13: =Lançamento!L56 ->  | T13: =Lançamento!S56 ->  | U13: =Lançamento!Z56 ->  | V13: =Lançamento!AG56 ->  | W13: =Lançamento!AN56 -> 
A14: DEZ | B14: =Lançamento!E19 ->  | C14: =Lançamento!L19 ->  | D14: =Lançamento!S19 ->  | E14: =Lançamento!Z19 ->  | F14: =Lançamento!AG19 ->  | G14: =Lançamento!E38 -> 0 | H14: =Lançamento!L38 ->  | I14: =Lançamento!S38 ->  | J14: =Lançamento!Z38 ->  | K14: =Lançamento!AG38 ->  | L14: =Lançamento!AN38 ->  | M14: =Lançamento!AU38 ->  | N14: =Lançamento!BB38 ->  | O14: =Lançamento!AN19 -> 2 | P14: =Lançamento!AU19 ->  | Q14: =Lançamento!BB19 -> 1 | R14: =Lançamento!E57 ->  | S14: =Lançamento!L57 ->  | T14: =Lançamento!S57 ->  | U14: =Lançamento!Z57 ->  | V14: =Lançamento!AG57 ->  | W14: =Lançamento!AN57 -> 
A15: Meta
B16: SATISFAÇÃO DE CLIENTE NPS | C16: FATURAMENTO MENSAL | D16: EFICIÊNCIA DE MÃO DE OBRA | E16: REJEIÇÃO INTERNA | F16: HORAS DE RETRABALHO | G16: OEE SOPRO | H16: OEE INJEÇÃO | I16: OEE PET | J16: OEE DECORAÇÃO | K16: REFUGO SOPRO | L16: REFUGO INJEÇÃO | M16: REFUGO PET | N16: REFUGO DECORAÇÃO | O16: RNC DE CLIENTE | P16: CUSTO NÃO QUALIDADE | Q16: CERTIFICAÇÃO ISO 9001 | R16: OTIF | S16: TAXA DE REPROGRAMAÇÃO | T16: PROJETOS ENCERRADOS X CRONOGRAMA | U16: EXECUÇÃO DE TESTES | V16: ABSENTEÍSMO | W16: TREINAMENTO
A17: JAN | B17: =Lançamento!D8 -> 60 | C17: =Lançamento!K8 -> 5969034 | D17: 70 | E17: =Lançamento!Y8 -> 0.05 | F17: =Lançamento!AF8 -> 600 | G17: =Lançamento!D27 -> 0.61408758 | H17: =Lançamento!K27 -> 0.64728224 | I17: =Lançamento!R27 -> 0.7 | J17: =Lançamento!Y27 -> 0.51563397 | K17: =Lançamento!AF27 -> 0.04 | L17: =Lançamento!AM27 -> 0.025 | M17: =Lançamento!AT27 -> 0.01 | N17: =Lançamento!BA27 -> 0.03 | O17: =Lançamento!AM8 -> 3 | P17: =Lançamento!AT8 -> 0.015 | Q17: =Lançamento!BA8 -> 1 | R17: =Lançamento!D46 -> 0.5 | S17: =Lançamento!K46 -> 0.5 | T17: =Lançamento!R46 -> 0.85 | U17: =Lançamento!Y46 -> 0.85 | V17: =Lançamento!AF46 -> 0.02 | W17: =Lançamento!AM46 -> 0.5
A18: FEV | B18: =Lançamento!D9 -> 60 | C18: =Lançamento!K9 -> 7134119 | D18: 71 | E18: =Lançamento!Y9 -> 0.05 | F18: =Lançamento!AF9 -> 600 | G18: =Lançamento!D28 -> 0.53724279 | H18: =Lançamento!K28 -> 0.60956784 | I18: =Lançamento!R28 -> 0.7 | J18: =Lançamento!Y28 -> 0.5375062 | K18: =Lançamento!AF28 -> 0.075 | L18: =Lançamento!AM28 -> 0.03 | M18: =Lançamento!AT28 -> 0.03 | N18: =Lançamento!BA28 -> 0.03 | O18: =Lançamento!AM9 -> 3 | P18: =Lançamento!AT9 -> 0.015 | Q18: =Lançamento!BA9 -> 1 | R18: =Lançamento!D47 -> 0.6 | S18: =Lançamento!K47 -> 0.4 | T18: =Lançamento!R47 -> 0.85 | U18: =Lançamento!Y47 -> 0.85 | V18: =Lançamento!AF47 -> 0.02 | W18: =Lançamento!AM47 -> 0.5
A19: MAR | B19: =Lançamento!D10 -> 60 | C19: =Lançamento!K10 -> 7102330 | D19: 72 | E19: =Lançamento!Y10 -> 0.05 | F19: =Lançamento!AF10 -> 600 | G19: =Lançamento!D29 -> 0.598069116 | H19: =Lançamento!K29 -> 0.5944092 | I19: =Lançamento!R29 -> 0.7 | J19: =Lançamento!Y29 -> 0.501110336 | K19: =Lançamento!AF29 -> 0.075 | L19: =Lançamento!AM29 -> 0.03 | M19: =Lançamento!AT29 -> 0.03 | N19: =Lançamento!BA29 -> 0.03 | O19: =Lançamento!AM10 -> 3 | P19: =Lançamento!AT10 -> 0.015 | Q19: =Lançamento!BA10 -> 1 | R19: =Lançamento!D48 -> 0.7 | S19: =Lançamento!K48 -> 0.3 | T19: =Lançamento!R48 -> 0.85 | U19: =Lançamento!Y48 -> 0.85 | V19: =Lançamento!AF48 -> 0.02 | W19: =Lançamento!AM48 -> 0.5
A20: ABR | B20: =Lançamento!D11 -> 60 | C20: =Lançamento!K11 -> 6681373 | D20: 73 | E20: =Lançamento!Y11 -> 0.045 | F20: =Lançamento!AF11 -> 500 | G20: =Lançamento!D30 -> 0.62634456 | H20: =Lançamento!K30 -> 0.699186816 | I20: =Lançamento!R30 -> 0.7 | J20: =Lançamento!Y30 -> 0.656842144 | K20: =Lançamento!AF30 -> 0.065 | L20: =Lançamento!AM30 -> 0.03 | M20: =Lançamento!AT30 -> 0.03 | N20: =Lançamento!BA30 -> 0.03 | O20: =Lançamento!AM11 -> 3 | P20: =Lançamento!AT11 -> 0.015 | Q20: =Lançamento!BA11 -> 1 | R20: =Lançamento!D49 -> 0.8 | S20: =Lançamento!K49 -> 0.3 | T20: =Lançamento!R49 -> 0.85 | U20: =Lançamento!Y49 -> 0.85 | V20: =Lançamento!AF49 -> 0.02 | W20: =Lançamento!AM49 -> 0.5
A21: MAI | B21: =Lançamento!D12 -> 60 | C21: =Lançamento!K12 -> 6417033 | D21: 74 | E21: =Lançamento!Y12 -> 0.04 | F21: =Lançamento!AF12 -> 500 | G21: =Lançamento!D31 -> 0.679036284 | H21: =Lançamento!K31 -> 0.6988086 | I21: =Lançamento!R31 -> 0.7 | J21: =Lançamento!Y31 -> 0.698292 | K21: =Lançamento!AF31 -> 0.065 | L21: =Lançamento!AM31 -> 0.03 | M21: =Lançamento!AT31 -> 0.03 | N21: =Lançamento!BA31 -> 0.03 | O21: =Lançamento!AM12 -> 2 | P21: =Lançamento!AT12 -> 0.005 | Q21: =Lançamento!BA12 -> 1 | R21: =Lançamento!D50 -> 0.9 | S21: =Lançamento!K50 -> 0.3 | T21: =Lançamento!R50 -> 0.85 | U21: =Lançamento!Y50 -> 0.85 | V21: =Lançamento!AF50 -> 0.02 | W21: =Lançamento!AM50 -> 0.5
A22: JUN | B22: =Lançamento!D13 -> 60 | C22: =Lançamento!K13 -> 6420195 | D22: 75 | E22: =Lançamento!Y13 -> 0.04 | F22: =Lançamento!AF13 -> 500 | G22: =Lançamento!D32 -> 0.640891648 | H22: =Lançamento!K32 -> 0.724244608 | I22: =Lançamento!R32 -> 0.7 | J22: =Lançamento!Y32 -> 0.76026924 | K22: =Lançamento!AF32 -> 0.065 | L22: =Lançamento!AM32 -> 0.03 | M22: =Lançamento!AT32 -> 0.03 | N22: =Lançamento!BA32 -> 0.03 | O22: =Lançamento!AM13 -> 2 | P22: =Lançamento!AT13 -> 0.005 | Q22: =Lançamento!BA13 -> 1 | R22: =Lançamento!D51 -> 0.91 | S22: =Lançamento!K51 -> 0.2 | T22: =Lançamento!R51 -> 0.85 | U22: =Lançamento!Y51 -> 0.85 | V22: =Lançamento!AF51 -> 0.02 | W22: =Lançamento!AM51 -> 0.5
A23: JUL | B23: =Lançamento!D14 -> 60 | C23: =Lançamento!K14 -> 7124833 | D23: 76 | E23: =Lançamento!Y14 -> 0.035 | F23: =Lançamento!AF14 -> 500 | G23: =Lançamento!D33 -> 0.682044174 | H23: =Lançamento!K33 -> 0.78894166 | I23: =Lançamento!R33 -> 0.72 | J23: =Lançamento!Y33 -> 0.68483888 | K23: =Lançamento!AF33 -> 0.065 | L23: =Lançamento!AM33 -> 0.023 | M23: =Lançamento!AT33 -> 0.027 | N23: =Lançamento!BA33 -> 0.03 | O23: =Lançamento!AM14 -> 2 | P23: =Lançamento!AT14 -> 0.005 | Q23: =Lançamento!BA14 -> 1 | R23: =Lançamento!D52 -> 0.93 | S23: =Lançamento!K52 -> 0.2 | T23: =Lançamento!R52 -> 0.85 | U23: =Lançamento!Y52 -> 0.85 | V23: =Lançamento!AF52 -> 0.02 | W23: =Lançamento!AM52 -> 0.5
A24: AGO | B24: =Lançamento!D15 -> 60 | C24: =Lançamento!K15 -> 7183658 | D24: 77 | E24: =Lançamento!Y15 -> 0.035 | F24: =Lançamento!AF15 -> 500 | G24: =Lançamento!D34 -> 0.596335824 | H24: =Lançamento!K34 -> 0.67671864 | I24: =Lançamento!R34 -> 0.72 | J24: =Lançamento!Y34 -> 0.735275232 | K24: =Lançamento!AF34 -> 0.062 | L24: =Lançamento!AM34 -> 0.023 | M24: =Lançamento!AT34 -> 0.027 | N24: =Lançamento!BA34 -> 0.03 | O24: =Lançamento!AM15 -> 2 | P24: =Lançamento!AT15 -> 0.005 | Q24: =Lançamento!BA15 -> 1 | R24: =Lançamento!D53 -> 0.95 | S24: =Lançamento!K53 -> 0.2 | T24: =Lançamento!R53 -> 0.85 | U24: =Lançamento!Y53 -> 0.85 | V24: =Lançamento!AF53 -> 0.02 | W24: =Lançamento!AM53 -> 0.5
A25: SET | B25: =Lançamento!D16 -> 60 | C25: =Lançamento!K16 -> 7387825 | D25: 78 | E25: =Lançamento!Y16 -> 0.035 | F25: =Lançamento!AF16 -> 500 | G25: =Lançamento!D35 -> 0.504817764 | H25: =Lançamento!K35 -> 0.688007352 | I25: =Lançamento!R35 -> 0.74 | J25: =Lançamento!Y35 -> 0.727846144 | K25: =Lançamento!AF35 -> 0.06 | L25: =Lançamento!AM35 -> 0.023 | M25: =Lançamento!AT35 -> 0.025 | N25: =Lançamento!BA35 -> 0.03 | O25: =Lançamento!AM16 -> 2 | P25: =Lançamento!AT16 -> 0.005 | Q25: =Lançamento!BA16 -> 1 | R25: =Lançamento!D54 -> 0.95 | S25: =Lançamento!K54 -> 0.2 | T25: =Lançamento!R54 -> 0.85 | U25: =Lançamento!Y54 -> 0.85 | V25: =Lançamento!AF54 -> 0.02 | W25: =Lançamento!AM54 -> 0.5
A26: OUT | B26: =Lançamento!D17 -> 60 | C26: =Lançamento!K17 -> 7309759 | D26: 79 | E26: =Lançamento!Y17 -> 0.03 | F26: =Lançamento!AF17 -> 500 | G26: =Lançamento!D36 -> 0.523224198 | H26: =Lançamento!K36 -> 0.656812854 | I26: =Lançamento!R36 -> 0.74 | J26: =Lançamento!Y36 -> 0 | K26: =Lançamento!AF36 -> 0.058 | L26: =Lançamento!AM36 -> 0.023 | M26: =Lançamento!AT36 -> 0.025 | N26: =Lançamento!BA36 -> 0.03 | O26: =Lançamento!AM17 -> 2 | P26: =Lançamento!AT17 -> 0.005 | Q26: =Lançamento!BA17 -> 1 | R26: =Lançamento!D55 -> 0.95 | S26: =Lançamento!K55 ->  | T26: =Lançamento!R55 -> 0.85 | U26: =Lançamento!Y55 -> 0.85 | V26: =Lançamento!AF55 -> 0.02 | W26: =Lançamento!AM55 -> 0.5
A27: NOV | B27: =Lançamento!D18 -> 60 | C27: =Lançamento!K18 -> 7411696 | D27: 80 | E27: =Lançamento!Y18 -> 0.03 | F27: =Lançamento!AF18 -> 500 | G27: =Lançamento!D37 -> 0 | H27: =Lançamento!K37 -> 0 | I27: =Lançamento!R37 -> 0.76 | J27: =Lançamento!Y37 -> 0 | K27: =Lançamento!AF37 -> 0.058 | L27: =Lançamento!AM37 -> 0.023 | M27: =Lançamento!AT37 -> 0.023 | N27: =Lançamento!BA37 -> 0.03 | O27: =Lançamento!AM18 -> 2 | P27: =Lançamento!AT18 -> 0.005 | Q27: =Lançamento!BA18 -> 1 | R27: =Lançamento!D56 -> 0.95 | S27: =Lançamento!K56 ->  | T27: =Lançamento!R56 -> 0.85 | U27: =Lançamento!Y56 -> 0.85 | V27: =Lançamento!AF56 -> 0.02 | W27: =Lançamento!AM56 -> 0.5
A28: DEZ | B28: =Lançamento!D19 -> 60 | C28: =Lançamento!K19 -> 3884849 | D28: 81 | E28: =Lançamento!Y19 -> 0.03 | F28: =Lançamento!AF19 -> 500 | G28: =Lançamento!D38 -> 0 | H28: =Lançamento!K38 -> 0 | I28: =Lançamento!R38 -> 0.77 | J28: =Lançamento!Y38 -> 0 | K28: =Lançamento!AF38 -> 0.058 | L28: =Lançamento!AM38 -> 0.023 | M28: =Lançamento!AT38 -> 0.023 | N28: =Lançamento!BA38 -> 0.03 | O28: =Lançamento!AM19 -> 2 | P28: =Lançamento!AT19 -> 0.005 | Q28: =Lançamento!BA19 -> 1 | R28: =Lançamento!D57 -> 0.95 | S28: =Lançamento!K57 ->  | T28: =Lançamento!R57 -> 0.85 | U28: =Lançamento!Y57 -> 0.85 | V28: =Lançamento!AF57 -> 0.02 | W28: =Lançamento!AM57 -> 0.5

Sheet Dados (hidden)
B1: Indicador | C1: JAN | D1: FEV | E1: MAR | F1: ABR | G1: MAI | H1: JUN | I1: JUL | J1: AGO | K1: SET | L1: OUT | M1: NOV | N1: DEZ
A2: META | B2: Meta | C2: =IF('[3]Base Dados'!F$363="","",'[3]Base Dados'!F$363) -> 60 | D2: =IF('[3]Base Dados'!G$363="","",'[3]Base Dados'!G$363) -> 60 | E2: =IF('[3]Base Dados'!H$363="","",'[3]Base Dados'!H$363) -> 60 | F2: =IF('[3]Base Dados'!I$363="","",'[3]Base Dados'!I$363) -> 60 | G2: =IF('[3]Base Dados'!J$363="","",'[3]Base Dados'!J$363) -> 60 | H2: =IF('[3]Base Dados'!K$363="","",'[3]Base Dados'!K$363) -> 60 | I2: =IF('[3]Base Dados'!L$363="","",'[3]Base Dados'!L$363) -> 60 | J2: =IF('[3]Base Dados'!M$363="","",'[3]Base Dados'!M$363) -> 60 | K2: =IF('[3]Base Dados'!N$363="","",'[3]Base Dados'!N$363) -> 60 | L2: =IF('[3]Base Dados'!O$363="","",'[3]Base Dados'!O$363) -> 60 | M2: =IF('[3]Base Dados'!P$363="","",'[3]Base Dados'!P$363) -> 60 | N2: =IF('[3]Base Dados'!Q$363="","",'[3]Base Dados'!Q$363) -> 60
A3: SATISFAÇÃO DE CLIENTE NPS | B3: Satisfação de cliente NPS | C3: =IF('[3]Base Dados'!F$362="","",'[3]Base Dados'!F$362) -> 23 | D3: =IF('[3]Base Dados'!G$362="","",'[3]Base Dados'!G$362) -> 23 | E3: =IF('[3]Base Dados'!H$362="","",'[3]Base Dados'!H$362) -> 23 | F3: =IF('[3]Base Dados'!I$362="","",'[3]Base Dados'!I$362) -> 23 | G3: =IF('[3]Base Dados'!J$362="","",'[3]Base Dados'!J$362) -> 23 | H3: =IF('[3]Base Dados'!K$362="","",'[3]Base Dados'!K$362) -> 23 | I3: =IF('[3]Base Dados'!L$362="","",'[3]Base Dados'!L$362) -> 57 | J3: =IF('[3]Base Dados'!M$362="","",'[3]Base Dados'!M$362) -> 57 | K3: =IF('[3]Base Dados'!N$362="","",'[3]Base Dados'!N$362) -> 57 | L3: =IF('[3]Base Dados'!O$362="","",'[3]Base Dados'!O$362) ->  | M3: =IF('[3]Base Dados'!P$362="","",'[3]Base Dados'!P$362) ->  | N3: =IF('[3]Base Dados'!Q$362="","",'[3]Base Dados'!Q$362) -> 
A4: META | B4: Meta | C4: =IF('[3]Base Dados'!F$371="","",'[3]Base Dados'!F$371) -> 5969034 | D4: =IF('[3]Base Dados'!G$371="","",'[3]Base Dados'!G$371) -> 7134119 | E4: =IF('[3]Base Dados'!H$371="","",'[3]Base Dados'!H$371) -> 7102330 | F4: =IF('[3]Base Dados'!I$371="","",'[3]Base Dados'!I$371) -> 6681373 | G4: =IF('[3]Base Dados'!J$371="","",'[3]Base Dados'!J$371) -> 6417033 | H4: =IF('[3]Base Dados'!K$371="","",'[3]Base Dados'!K$371) -> 6420195 | I4: =IF('[3]Base Dados'!L$371="","",'[3]Base Dados'!L$371) -> 7124833 | J4: =IF('[3]Base Dados'!M$371="","",'[3]Base Dados'!M$371) -> 7183658 | K4: =IF('[3]Base Dados'!N$371="","",'[3]Base Dados'!N$371) -> 7387825 | L4: =IF('[3]Base Dados'!O$371="","",'[3]Base Dados'!O$371) -> 7309759 | M4: =IF('[3]Base Dados'!P$371="","",'[3]Base Dados'!P$371) -> 7411696 | N4: =IF('[3]Base Dados'!Q$371="","",'[3]Base Dados'!Q$371) -> 3884849
A5: FATURAMENTO MENSAL | B5: Faturamento mensal | C5: =IF('[3]Base Dados'!F$369="","",'[3]Base Dados'!F$369) -> 5920749 | D5: =IF('[3]Base Dados'!G$369="","",'[3]Base Dados'!G$369) -> 6728756 | E5: =IF('[3]Base Dados'!H$369="","",'[3]Base Dados'!H$369) -> 6056838 | F5: =IF('[3]Base Dados'!I$369="","",'[3]Base Dados'!I$369) -> 7056727 | G5: =IF('[3]Base Dados'!J$369="","",'[3]Base Dados'!J$369) -> 6779006.26 | H5: =IF('[3]Base Dados'!K$369="","",'[3]Base Dados'!K$369) -> 6700902 | I5: =IF('[3]Base Dados'!L$369="","",'[3]Base Dados'!L$369) -> 7395049 | J5: =IF('[3]Base Dados'!M$369="","",'[3]Base Dados'!M$369) -> 7010077 | K5: =IF('[3]Base Dados'!N$369="","",'[3]Base Dados'!N$369) -> 7565275 | L5: =IF('[3]Base Dados'!O$369="","",'[3]Base Dados'!O$369) ->  | M5: =IF('[3]Base Dados'!P$369="","",'[3]Base Dados'!P$369) ->  | N5: =IF('[3]Base Dados'!Q$369="","",'[3]Base Dados'!Q$369) -> 
A6: META | B6: Meta | C6: =IF('[3]Base Dados'!E$118="","",'[3]Base Dados'!E$118) -> 0.9 | D6: =IF('[3]Base Dados'!F$118="","",'[3]Base Dados'!F$118) -> 0.7 | E6: =IF('[3]Base Dados'!G$118="","",'[3]Base Dados'!G$118) -> 0.7 | F6: =IF('[3]Base Dados'!H$118="","",'[3]Base Dados'!H$118) -> 0.7 | G6: =IF('[3]Base Dados'!I$118="","",'[3]Base Dados'!I$118) -> 0.8 | H6: =IF('[3]Base Dados'!J$118="","",'[3]Base Dados'!J$118) -> 0.8 | I6: =IF('[3]Base Dados'!K$118="","",'[3]Base Dados'!K$118) -> 0.8 | J6: =IF('[3]Base Dados'!L$118="","",'[3]Base Dados'!L$118) -> 0.82 | K6: =IF('[3]Base Dados'!M$118="","",'[3]Base Dados'!M$118) -> 0.82 | L6: =IF('[3]Base Dados'!N$118="","",'[3]Base Dados'!N$118) -> 0.82 | M6: =IF('[3]Base Dados'!O$118="","",'[3]Base Dados'!O$118) -> 0.85 | N6: =IF('[3]Base Dados'!P$118="","",'[3]Base Dados'!P$118) -> 0.85
A7: EFICIÊNCIA DE MÃO DE OBRA | B7: Eficiência de mão de obra | C7: =IF('[3]Base Dados'!E$117="","",'[3]Base Dados'!E$117) -> 0.7390577512 | D7: =IF('[3]Base Dados'!F$117="","",'[3]Base Dados'!F$117) -> 0.7346440683 | E7: =IF('[3]Base Dados'!G$117="","",'[3]Base Dados'!G$117) -> 0.7738724293 | F7: =IF('[3]Base Dados'!H$117="","",'[3]Base Dados'!H$117) -> 0.8422044361 | G7: =IF('[3]Base Dados'!I$117="","",'[3]Base Dados'!I$117) -> 0.8601774155 | H7: =IF('[3]Base Dados'!J$117="","",'[3]Base Dados'!J$117) -> 0.9057103007 | I7: =IF('[3]Base Dados'!K$117="","",'[3]Base Dados'!K$117) -> 0.9004583586 | J7: =IF('[3]Base Dados'!L$117="","",'[3]Base Dados'!L$117) -> 0.8526726774 | K7: =IF('[3]Base Dados'!M$117="","",'[3]Base Dados'!M$117) -> 0.7641126111 | L7: =IF('[3]Base Dados'!N$117="","",'[3]Base Dados'!N$117) -> 0.9193826062 | M7: =IF('[3]Base Dados'!O$117="","",'[3]Base Dados'!O$117) ->  | N7: =IF('[3]Base Dados'!P$117="","",'[3]Base Dados'!P$117) -> 
A8: META | B8: Meta | C8: =IF('[3]Base Dados'!F$66="","",'[3]Base Dados'!F$66) -> 0.05 | D8: =IF('[3]Base Dados'!G$66="","",'[3]Base Dados'!G$66) -> 0.05 | E8: =IF('[3]Base Dados'!H$66="","",'[3]Base Dados'!H$66) -> 0.05 | F8: =IF('[3]Base Dados'!I$66="","",'[3]Base Dados'!I$66) -> 0.045 | G8: =IF('[3]Base Dados'!J$66="","",'[3]Base Dados'!J$66) -> 0.04 | H8: =IF('[3]Base Dados'!K$66="","",'[3]Base Dados'!K$66) -> 0.04 | I8: =IF('[3]Base Dados'!L$66="","",'[3]Base Dados'!L$66) -> 0.035 | J8: =IF('[3]Base Dados'!M$66="","",'[3]Base Dados'!M$66) -> 0.035 | K8: =IF('[3]Base Dados'!N$66="","",'[3]Base Dados'!N$66) -> 0.035 | L8: =IF('[3]Base Dados'!O$66="","",'[3]Base Dados'!O$66) -> 0.03 | M8: =IF('[3]Base Dados'!P$66="","",'[3]Base Dados'!P$66) -> 0.03 | N8: =IF('[3]Base Dados'!Q$66="","",'[3]Base Dados'!Q$66) -> 0.03
A9: REJEIÇÃO INTERNA | B9: Rejeição Interna | C9: =IF('[3]Base Dados'!F$63="","",'[3]Base Dados'!F$65) -> 0.03325 | D9: =IF('[3]Base Dados'!G$63="","",'[3]Base Dados'!G$65) -> 0.0355 | E9: =IF('[3]Base Dados'!H$63="","",'[3]Base Dados'!H$65) -> 0.026 | F9: =IF('[3]Base Dados'!I$63="","",'[3]Base Dados'!I$65) -> 0.0275 | G9: =IF('[3]Base Dados'!J$63="","",'[3]Base Dados'!J$65) -> 0.0345 | H9: =IF('[3]Base Dados'!K$63="","",'[3]Base Dados'!K$65) -> 0.038 | I9: =IF('[3]Base Dados'!L$63="","",'[3]Base Dados'!L$65) -> 0.078 | J9: =IF('[3]Base Dados'!M$63="","",'[3]Base Dados'!M$65) -> 0.06075 | K9: =IF('[3]Base Dados'!N$63="","",'[3]Base Dados'!N$65) -> 0.0525 | L9: =IF('[3]Base Dados'!O$63="","",'[3]Base Dados'!O$65) ->  | M9: =IF('[3]Base Dados'!P$63="","",'[3]Base Dados'!P$65) ->  | N9: =IF('[3]Base Dados'!Q$63="","",'[3]Base Dados'!Q$65) -> 
A10: META | B10: Meta | C10: =IF('[3]Base Dados'!F$47="","",'[3]Base Dados'!F$47) -> 600 | D10: =IF('[3]Base Dados'!G$47="","",'[3]Base Dados'!G$47) -> 600 | E10: =IF('[3]Base Dados'!H$47="","",'[3]Base Dados'!H$47) -> 600 | F10: =IF('[3]Base Dados'!I$47="","",'[3]Base Dados'!I$47) -> 500 | G10: =IF('[3]Base Dados'!J$47="","",'[3]Base Dados'!J$47) -> 500 | H10: =IF('[3]Base Dados'!K$47="","",'[3]Base Dados'!K$47) -> 500 | I10: =IF('[3]Base Dados'!L$47="","",'[3]Base Dados'!L$47) -> 500 | J10: =IF('[3]Base Dados'!M$47="","",'[3]Base Dados'!M$47) -> 500 | K10: =IF('[3]Base Dados'!N$47="","",'[3]Base Dados'!N$47) -> 500 | L10: =IF('[3]Base Dados'!O$47="","",'[3]Base Dados'!O$47) -> 500 | M10: =IF('[3]Base Dados'!P$47="","",'[3]Base Dados'!P$47) -> 500 | N10: =IF('[3]Base Dados'!Q$47="","",'[3]Base Dados'!Q$47) -> 500
A11: HORAS DE RETRABALHO | B11: Horas de Retrabalho | C11: =IF('[3]Base Dados'!F$46="","",'[3]Base Dados'!F$46) -> 521 | D11: =IF('[3]Base Dados'!G$46="","",'[3]Base Dados'!G$46) -> 1006.21 | E11: =IF('[3]Base Dados'!H$46="","",'[3]Base Dados'!H$46) -> 789.62 | F11: =IF('[3]Base Dados'!I$46="","",'[3]Base Dados'!I$46) -> 148.72 | G11: =IF('[3]Base Dados'!J$46="","",'[3]Base Dados'!J$46) -> 519.56 | H11: =IF('[3]Base Dados'!K$46="","",'[3]Base Dados'!K$46) -> 1192 | I11: =IF('[3]Base Dados'!L$46="","",'[3]Base Dados'!L$46) -> 1445 | J11: =IF('[3]Base Dados'!M$46="","",'[3]Base Dados'!M$46) -> 623 | K11: =IF('[3]Base Dados'!N$46="","",'[3]Base Dados'!N$46) -> 691 | L11: =IF('[3]Base Dados'!O$46="","",'[3]Base Dados'!O$46) ->  | M11: =IF('[3]Base Dados'!P$46="","",'[3]Base Dados'!P$46) ->  | N11: =IF('[3]Base Dados'!Q$46="","",'[3]Base Dados'!Q$46) -> 
A12: INDICADOR DE PROCESSO | B12: Indicador de Processo
A13: OEE | B13: OEE
A14: META | B14: Meta | C14: =IF('[3]Base Dados'!E$94="","",'[3]Base Dados'!E$94) -> 0.61408758 | D14: =IF('[3]Base Dados'!F$94="","",'[3]Base Dados'!F$94) -> 0.53724279 | E14: =IF('[3]Base Dados'!G$94="","",'[3]Base Dados'!G$94) -> 0.598069116 | F14: =IF('[3]Base Dados'!H$94="","",'[3]Base Dados'!H$94) -> 0.62634456 | G14: =IF('[3]Base Dados'!I$94="","",'[3]Base Dados'!I$94) -> 0.679036284 | H14: =IF('[3]Base Dados'!J$94="","",'[3]Base Dados'!J$94) -> 0.640891648 | I14: =IF('[3]Base Dados'!K$94="","",'[3]Base Dados'!K$94) -> 0.682044174 | J14: =IF('[3]Base Dados'!L$94="","",'[3]Base Dados'!L$94) -> 0.596335824 | K14: =IF('[3]Base Dados'!M$94="","",'[3]Base Dados'!M$94) -> 0.504817764 | L14: =IF('[3]Base Dados'!N$94="","",'[3]Base Dados'!N$94) -> 0.523224198 | M14: =IF('[3]Base Dados'!O$94="","",'[3]Base Dados'!O$94) -> 0 | N14: =IF('[3]Base Dados'!P$94="","",'[3]Base Dados'!P$94) -> 0
A15: OEE SOPRO | B15: Sopro | C15: =IF('[3]Base Dados'!E$90="","",'[3]Base Dados'!E$93) -> 0.929 | D15: =IF('[3]Base Dados'!F$90="","",'[3]Base Dados'!F$93) -> 0.917 | E15: =IF('[3]Base Dados'!G$90="","",'[3]Base Dados'!G$93) -> 0.822 | F15: =IF('[3]Base Dados'!H$90="","",'[3]Base Dados'!H$93) -> 0.94 | G15: =IF('[3]Base Dados'!I$90="","",'[3]Base Dados'!I$93) -> 0.948 | H15: =IF('[3]Base Dados'!J$90="","",'[3]Base Dados'!J$93) -> 0.998 | I15: =IF('[3]Base Dados'!K$90="","",'[3]Base Dados'!K$93) -> 0.937 | J15: =IF('[3]Base Dados'!L$90="","",'[3]Base Dados'!L$93) -> 0.912 | K15: =IF('[3]Base Dados'!M$90="","",'[3]Base Dados'!M$93) -> 0.906 | L15: =IF('[3]Base Dados'!N$90="","",'[3]Base Dados'!N$93) -> 0.918 | M15: =IF('[3]Base Dados'!O$90="","",'[3]Base Dados'!O$93) -> 0 | N15: =IF('[3]Base Dados'!P$90="","",'[3]Base Dados'!P$93) -> 0
A16: META | B16: Meta | C16: =IF('[3]Base Dados'!E$100="","",'[3]Base Dados'!E$100) -> 0.64728224 | D16: =IF('[3]Base Dados'!F$100="","",'[3]Base Dados'!F$100) -> 0.60956784 | E16: =IF('[3]Base Dados'!G$100="","",'[3]Base Dados'!G$100) -> 0.5944092 | F16: =IF('[3]Base Dados'!H$100="","",'[3]Base Dados'!H$100) -> 0.699186816 | G16: =IF('[3]Base Dados'!I$100="","",'[3]Base Dados'!I$100) -> 0.6988086 | H16: =IF('[3]Base Dados'!J$100="","",'[3]Base Dados'!J$100) -> 0.724244608 | I16: =IF('[3]Base Dados'!K$100="","",'[3]Base Dados'!K$100) -> 0.78894166 | J16: =IF('[3]Base Dados'!L$100="","",'[3]Base Dados'!L$100) -> 0.67671864 | K16: =IF('[3]Base Dados'!M$100="","",'[3]Base Dados'!M$100) -> 0.688007352 | L16: =IF('[3]Base Dados'!N$100="","",'[3]Base Dados'!N$100) -> 0.656812854 | M16: =IF('[3]Base Dados'!O$100="","",'[3]Base Dados'!O$100) -> 0 | N16: =IF('[3]Base Dados'!P$100="","",'[3]Base Dados'!P$100) -> 0
A17: OEE INJEÇÃO | B17: Injeção | C17: =IF('[3]Base Dados'!E$98="","",'[3]Base Dados'!E$99) -> 0.968 | D17: =IF('[3]Base Dados'!F$98="","",'[3]Base Dados'!F$99) -> 0.978 | E17: =IF('[3]Base Dados'!G$98="","",'[3]Base Dados'!G$99) -> 0.98 | F17: =IF('[3]Base Dados'!H$98="","",'[3]Base Dados'!H$99) -> 0.972 | G17: =IF('[3]Base Dados'!I$98="","",'[3]Base Dados'!I$99) -> 0.973 | H17: =IF('[3]Base Dados'!J$98="","",'[3]Base Dados'!J$99) -> 0.998 | I17: =IF('[3]Base Dados'!K$98="","",'[3]Base Dados'!K$99) -> 0.985 | J17: =IF('[3]Base Dados'!L$98="","",'[3]Base Dados'!L$99) -> 0.985 | K17: =IF('[3]Base Dados'!M$98="","",'[3]Base Dados'!M$99) -> 0.978 | L17: =IF('[3]Base Dados'!N$98="","",'[3]Base Dados'!N$99) -> 0.981 | M17: =IF('[3]Base Dados'!O$98="","",'[3]Base Dados'!O$99) ->  | N17: =IF('[3]Base Dados'!P$98="","",'[3]Base Dados'!P$99) -> 
A18: META | B18: Meta | C18: =IF('[3]Base Dados'!E$88="","",'[3]Base Dados'!E$88) -> 0.694011038 | D18: =IF('[3]Base Dados'!F$88="","",'[3]Base Dados'!F$88) -> 0.712052208 | E18: =IF('[3]Base Dados'!G$88="","",'[3]Base Dados'!G$88) -> 0.68766054 | F18: =IF('[3]Base Dados'!H$88="","",'[3]Base Dados'!H$88) -> 0.7738216 | G18: =IF('[3]Base Dados'!I$88="","",'[3]Base Dados'!I$88) -> 0.80777088 | H18: =IF('[3]Base Dados'!J$88="","",'[3]Base Dados'!J$88) -> 0.770453856 | I18: =IF('[3]Base Dados'!K$88="","",'[3]Base Dados'!K$88) -> 0.729128304 | J18: =IF('[3]Base Dados'!L$88="","",'[3]Base Dados'!L$88) -> 0.75150944 | K18: =IF('[3]Base Dados'!M$88="","",'[3]Base Dados'!M$88) -> 0.79561146 | L18: =IF('[3]Base Dados'!N$88="","",'[3]Base Dados'!N$88) -> 0.782752 | M18: =IF('[3]Base Dados'!O$88="","",'[3]Base Dados'!O$88) -> 0 | N18: =IF('[3]Base Dados'!P$88="","",'[3]Base Dados'!P$88) -> 0
A19: OEE PET | B19: PET | C19: =IF('[3]Base Dados'!E$86="","",'[3]Base Dados'!E$87) -> 0.974 | D19: =IF('[3]Base Dados'!F$86="","",'[3]Base Dados'!F$87) -> 0.972 | E19: =IF('[3]Base Dados'!G$86="","",'[3]Base Dados'!G$87) -> 0.969 | F19: =IF('[3]Base Dados'!H$86="","",'[3]Base Dados'!H$87) -> 0.976 | G19: =IF('[3]Base Dados'!I$86="","",'[3]Base Dados'!I$87) -> 0.98 | H19: =IF('[3]Base Dados'!J$86="","",'[3]Base Dados'!J$87) -> 0.981 | I19: =IF('[3]Base Dados'!K$86="","",'[3]Base Dados'!K$87) -> 0.972 | J19: =IF('[3]Base Dados'!L$86="","",'[3]Base Dados'!L$87) -> 0.97 | K19: =IF('[3]Base Dados'!M$86="","",'[3]Base Dados'!M$87) -> 0.97 | L19: =IF('[3]Base Dados'!N$86="","",'[3]Base Dados'!N$87) -> 0.976 | M19: =IF('[3]Base Dados'!O$86="","",'[3]Base Dados'!O$87) ->  | N19: =IF('[3]Base Dados'!P$86="","",'[3]Base Dados'!P$87) -> 
A20: META | B20: Meta | C20: =IF('[3]Base Dados'!F$106="","",'[3]Base Dados'!F$106) -> 0.51563397 | D20: =IF('[3]Base Dados'!G$106="","",'[3]Base Dados'!G$106) -> 0.5375062 | E20: =IF('[3]Base Dados'!H$106="","",'[3]Base Dados'!H$106) -> 0.501110336 | F20: =IF('[3]Base Dados'!I$106="","",'[3]Base Dados'!I$106) -> 0.656842144 | G20: =IF('[3]Base Dados'!J$106="","",'[3]Base Dados'!J$106) -> 0.698292 | H20: =IF('[3]Base Dados'!K$106="","",'[3]Base Dados'!K$106) -> 0.76026924 | I20: =IF('[3]Base Dados'!L$106="","",'[3]Base Dados'!L$106) -> 0.68483888 | J20: =IF('[3]Base Dados'!M$106="","",'[3]Base Dados'!M$106) -> 0.735275232 | K20: =IF('[3]Base Dados'!N$106="","",'[3]Base Dados'!N$106) -> 0.727846144 | L20: =IF('[3]Base Dados'!O$106="","",'[3]Base Dados'!O$106) -> 0 | M20: =IF('[3]Base Dados'!P$106="","",'[3]Base Dados'!P$106) -> 0 | N20: =IF('[3]Base Dados'!Q$106="","",'[3]Base Dados'!Q$106) -> 0
A21: OEE DECORAÇÃO | B21: Decoração | C21: =IF('[3]Base Dados'!F$103="","",'[3]Base Dados'!F$105) -> 0.969 | D21: =IF('[3]Base Dados'!G$103="","",'[3]Base Dados'!G$105) -> 0.968 | E21: =IF('[3]Base Dados'!H$103="","",'[3]Base Dados'!H$105) -> 0.964 | F21: =IF('[3]Base Dados'!I$103="","",'[3]Base Dados'!I$105) -> 0.976 | G21: =IF('[3]Base Dados'!J$103="","",'[3]Base Dados'!J$105) -> 0.978 | H21: =IF('[3]Base Dados'!K$103="","",'[3]Base Dados'!K$105) -> 0.972 | I21: =IF('[3]Base Dados'!L$103="","",'[3]Base Dados'!L$105) -> 0.974 | J21: =IF('[3]Base Dados'!M$103="","",'[3]Base Dados'!M$105) -> 0.972 | K21: =IF('[3]Base Dados'!N$103="","",'[3]Base Dados'!N$105) -> 0.976 | L21: =IF('[3]Base Dados'!O$103="","",'[3]Base Dados'!O$105) ->  | M21: =IF('[3]Base Dados'!P$103="","",'[3]Base Dados'!P$105) ->  | N21: =IF('[3]Base Dados'!Q$103="","",'[3]Base Dados'!Q$105) -> 
A22: REFUGO | B22: Refugo
A23: META | B23: Meta | C23: =IF('[3]Base Dados'!E$34="","",'[3]Base Dados'!E$34) -> 0.04 | D23: =IF('[3]Base Dados'!F$34="","",'[3]Base Dados'!F$34) -> 0.075 | E23: =IF('[3]Base Dados'!G$34="","",'[3]Base Dados'!G$34) -> 0.075 | F23: =IF('[3]Base Dados'!H$34="","",'[3]Base Dados'!H$34) -> 0.065 | G23: =IF('[3]Base Dados'!I$34="","",'[3]Base Dados'!I$34) -> 0.065 | H23: =IF('[3]Base Dados'!J$34="","",'[3]Base Dados'!J$34) -> 0.065 | I23: =IF('[3]Base Dados'!K$34="","",'[3]Base Dados'!K$34) -> 0.065 | J23: =IF('[3]Base Dados'!L$34="","",'[3]Base Dados'!L$34) -> 0.062 | K23: =IF('[3]Base Dados'!M$34="","",'[3]Base Dados'!M$34) -> 0.06 | L23: =IF('[3]Base Dados'!N$34="","",'[3]Base Dados'!N$34) -> 0.058 | M23: =IF('[3]Base Dados'!O$34="","",'[3]Base Dados'!O$34) -> 0.058 | N23: =IF('[3]Base Dados'!P$34="","",'[3]Base Dados'!P$34) -> 0.058
A24: REFUGO SOPRO | B24: Sopro | C24: =IF('[3]Base Dados'!E$33="","",'[3]Base Dados'!E$33) -> 0.08052887453 | D24: =IF('[3]Base Dados'!F$33="","",'[3]Base Dados'!F$33) -> 0.08358118884 | E24: =IF('[3]Base Dados'!G$33="","",'[3]Base Dados'!G$33) -> 0.08217167986 | F24: =IF('[3]Base Dados'!H$33="","",'[3]Base Dados'!H$33) -> 0.06016862402 | G24: =IF('[3]Base Dados'!I$33="","",'[3]Base Dados'!I$33) -> 0.05193994857 | H24: =IF('[3]Base Dados'!J$33="","",'[3]Base Dados'!J$33) -> 0.07255441581 | I24: =IF('[3]Base Dados'!K$33="","",'[3]Base Dados'!K$33) -> 0.06270278572 | J24: =IF('[3]Base Dados'!L$33="","",'[3]Base Dados'!L$33) -> 0.08787331096 | K24: =IF('[3]Base Dados'!M$33="","",'[3]Base Dados'!M$33) -> 0.0941705371 | L24: =IF('[3]Base Dados'!N$33="","",'[3]Base Dados'!N$33) -> 0.08149459993 | M24: =IF('[3]Base Dados'!O$33="","",'[3]Base Dados'!O$33) ->  | N24: =IF('[3]Base Dados'!P$33="","",'[3]Base Dados'!P$33) -> 
A25: META | B25: Meta | C25: =IF('[3]Base Dados'!E$39="","",'[3]Base Dados'!E$39) -> 0.025 | D25: =IF('[3]Base Dados'!F$39="","",'[3]Base Dados'!F$39) -> 0.03 | E25: =IF('[3]Base Dados'!G$39="","",'[3]Base Dados'!G$39) -> 0.03 | F25: =IF('[3]Base Dados'!H$39="","",'[3]Base Dados'!H$39) -> 0.03 | G25: =IF('[3]Base Dados'!I$39="","",'[3]Base Dados'!I$39) -> 0.03 | H25: =IF('[3]Base Dados'!J$39="","",'[3]Base Dados'!J$39) -> 0.03 | I25: =IF('[3]Base Dados'!K$39="","",'[3]Base Dados'!K$39) -> 0.023 | J25: =IF('[3]Base Dados'!L$39="","",'[3]Base Dados'!L$39) -> 0.023 | K25: =IF('[3]Base Dados'!M$39="","",'[3]Base Dados'!M$39) -> 0.023 | L25: =IF('[3]Base Dados'!N$39="","",'[3]Base Dados'!N$39) -> 0.023 | M25: =IF('[3]Base Dados'!O$39="","",'[3]Base Dados'!O$39) -> 0.023 | N25: =IF('[3]Base Dados'!P$39="","",'[3]Base Dados'!P$39) -> 0.023
A26: REFUGO REFUGO INJEÇÃO | B26: Injeção | C26: =IF('[3]Base Dados'!E$38="","",'[3]Base Dados'!E$38) -> 0.03463277823 | D26: =IF('[3]Base Dados'!F$38="","",'[3]Base Dados'!F$38) -> 0.02124082782 | E26: =IF('[3]Base Dados'!G$38="","",'[3]Base Dados'!G$38) -> 0.02604000443 | F26: =IF('[3]Base Dados'!H$38="","",'[3]Base Dados'!H$38) -> 0.02820726406 | G26: =IF('[3]Base Dados'!I$38="","",'[3]Base Dados'!I$38) -> 0.02649851212 | H26: =IF('[3]Base Dados'!J$38="","",'[3]Base Dados'!J$38) -> 0.02675585284 | I26: =IF('[3]Base Dados'!K$38="","",'[3]Base Dados'!K$38) -> 0.01530167288 | J26: =IF('[3]Base Dados'!L$38="","",'[3]Base Dados'!L$38) -> 0.01481056257 | K26: =IF('[3]Base Dados'!M$38="","",'[3]Base Dados'!M$38) -> 0.0217572904 | L26: =IF('[3]Base Dados'!N$38="","",'[3]Base Dados'!N$38) -> 0.01883080382 | M26: =IF('[3]Base Dados'!O$38="","",'[3]Base Dados'!O$38) ->  | N26: =IF('[3]Base Dados'!P$38="","",'[3]Base Dados'!P$38) -> 
A27: META | B27: Meta | C27: =IF('[3]Base Dados'!E$29="","",'[3]Base Dados'!E$29) -> 0.01 | D27: =IF('[3]Base Dados'!F$29="","",'[3]Base Dados'!F$29) -> 0.03 | E27: =IF('[3]Base Dados'!G$29="","",'[3]Base Dados'!G$29) -> 0.03 | F27: =IF('[3]Base Dados'!H$29="","",'[3]Base Dados'!H$29) -> 0.03 | G27: =IF('[3]Base Dados'!I$29="","",'[3]Base Dados'!I$29) -> 0.03 | H27: =IF('[3]Base Dados'!J$29="","",'[3]Base Dados'!J$29) -> 0.03 | I27: =IF('[3]Base Dados'!K$29="","",'[3]Base Dados'!K$29) -> 0.027 | J27: =IF('[3]Base Dados'!L$29="","",'[3]Base Dados'!L$29) -> 0.027 | K27: =IF('[3]Base Dados'!M$29="","",'[3]Base Dados'!M$29) -> 0.025 | L27: =IF('[3]Base Dados'!N$29="","",'[3]Base Dados'!N$29) -> 0.025 | M27: =IF('[3]Base Dados'!O$29="","",'[3]Base Dados'!O$29) -> 0.023 | N27: =IF('[3]Base Dados'!P$29="","",'[3]Base Dados'!P$29) -> 0.023
A28: REFUGO PET | B28: PET | C28: =IF('[3]Base Dados'!E$28="","",'[3]Base Dados'!E$28) -> 0.02488685704 | D28: =IF('[3]Base Dados'!F$28="","",'[3]Base Dados'!F$28) -> 0.0283695021 | E28: =IF('[3]Base Dados'!G$28="","",'[3]Base Dados'!G$28) -> 0.03181490413 | F28: =IF('[3]Base Dados'!H$28="","",'[3]Base Dados'!H$28) -> 0.02434321556 | G28: =IF('[3]Base Dados'!I$28="","",'[3]Base Dados'!I$28) -> 0.02008483631 | H28: =IF('[3]Base Dados'!J$28="","",'[3]Base Dados'!J$28) -> 0.0276764094 | I28: =IF('[3]Base Dados'!K$28="","",'[3]Base Dados'!K$28) -> 0.02823995661 | J28: =IF('[3]Base Dados'!L$28="","",'[3]Base Dados'!L$28) -> 0.029577148 | K28: =IF('[3]Base Dados'!M$28="","",'[3]Base Dados'!M$28) -> 0.0300990365 | L28: =IF('[3]Base Dados'!N$28="","",'[3]Base Dados'!N$28) -> 0.02420976173 | M28: =IF('[3]Base Dados'!O$28="","",'[3]Base Dados'!O$28) ->  | N28: =IF('[3]Base Dados'!P$28="","",'[3]Base Dados'!P$28) -> 
A29: META | B29: Meta | C29: =IF('[3]Base Dados'!E$44="","",'[3]Base Dados'!E$44) -> 0.03 | D29: =IF('[3]Base Dados'!F$44="","",'[3]Base Dados'!F$44) -> 0.03 | E29: =IF('[3]Base Dados'!G$44="","",'[3]Base Dados'!G$44) -> 0.03 | F29: =IF('[3]Base Dados'!H$44="","",'[3]Base Dados'!H$44) -> 0.03 | G29: =IF('[3]Base Dados'!I$44="","",'[3]Base Dados'!I$44) -> 0.03 | H29: =IF('[3]Base Dados'!J$44="","",'[3]Base Dados'!J$44) -> 0.03 | I29: =IF('[3]Base Dados'!K$44="","",'[3]Base Dados'!K$44) -> 0.03 | J29: =IF('[3]Base Dados'!L$44="","",'[3]Base Dados'!L$44) -> 0.03 | K29: =IF('[3]Base Dados'!M$44="","",'[3]Base Dados'!M$44) -> 0.03 | L29: =IF('[3]Base Dados'!N$44="","",'[3]Base Dados'!N$44) -> 0.03 | M29: =IF('[3]Base Dados'!O$44="","",'[3]Base Dados'!O$44) -> 0.03 | N29: =IF('[3]Base Dados'!P$44="","",'[3]Base Dados'!P$44) -> 0.03
A30: REFUGO DECORAÇÃO | B30: Decoração | C30: ='[3]Base Dados'!E$43 -> 0.02565711379 | D30: ='[3]Base Dados'!F$43 -> 0.03062155538 | E30: ='[3]Base Dados'!G$43 -> 0.03180750305 | F30: ='[3]Base Dados'!H$43 -> 0.03555156227 | G30: ='[3]Base Dados'!I$43 -> 0.02376055095 | H30: ='[3]Base Dados'!J$43 -> 0.02222986686 | I30: ='[3]Base Dados'!K$43 -> 0.02457036954 | J30: ='[3]Base Dados'!L$43 -> 0.02570091165 | K30: ='[3]Base Dados'!M$43 -> 0.02832054625 | L30: ='[3]Base Dados'!N$43 -> 0.02447682263 | M30: ='[3]Base Dados'!O$43 ->  | N30: ='[3]Base Dados'!P$43 -> 
A31: INDICADOR DO PCP | B31: Indicador do PCP
A32: META | B32: Meta | C32: =IF('[3]Base Dados'!F$199="","",'[3]Base Dados'!F$199) -> 0.5 | D32: =IF('[3]Base Dados'!G$199="","",'[3]Base Dados'!G$199) -> 0.6 | E32: =IF('[3]Base Dados'!H$199="","",'[3]Base Dados'!H$199) -> 0.7 | F32: =IF('[3]Base Dados'!I$199="","",'[3]Base Dados'!I$199) -> 0.8 | G32: =IF('[3]Base Dados'!J$199="","",'[3]Base Dados'!J$199) -> 0.9 | H32: =IF('[3]Base Dados'!K$199="","",'[3]Base Dados'!K$199) -> 0.91 | I32: =IF('[3]Base Dados'!L$199="","",'[3]Base Dados'!L$199) -> 0.93 | J32: =IF('[3]Base Dados'!M$199="","",'[3]Base Dados'!M$199) -> 0.95 | K32: =IF('[3]Base Dados'!N$199="","",'[3]Base Dados'!N$199) -> 0.95 | L32: =IF('[3]Base Dados'!O$199="","",'[3]Base Dados'!O$199) -> 0.95 | M32: =IF('[3]Base Dados'!P$199="","",'[3]Base Dados'!P$199) -> 0.95 | N32: =IF('[3]Base Dados'!Q$199="","",'[3]Base Dados'!Q$199) -> 0.95
A33: OTIF | B33: OTIF | C33: =IF('[3]Base Dados'!F$198="","",'[3]Base Dados'!F$198) -> 0.367781155 | D33: =IF('[3]Base Dados'!G$198="","",'[3]Base Dados'!G$198) -> 0.4257703081 | E33: =IF('[3]Base Dados'!H$198="","",'[3]Base Dados'!H$198) -> 0.7894736842 | F33: =IF('[3]Base Dados'!I$198="","",'[3]Base Dados'!I$198) -> 0.8024691358 | G33: =IF('[3]Base Dados'!J$198="","",'[3]Base Dados'!J$198) -> 0.7992277992 | H33: =IF('[3]Base Dados'!K$198="","",'[3]Base Dados'!K$198) -> 0.9407665505 | I33: =IF('[3]Base Dados'!L$198="","",'[3]Base Dados'!L$198) -> 0.9349845201 | J33: =IF('[3]Base Dados'!M$198="","",'[3]Base Dados'!M$198) -> 0.9766763848 | K33: =IF('[3]Base Dados'!N$198="","",'[3]Base Dados'!N$198) -> 0.9534246575 | L33: =IF('[3]Base Dados'!O$198="","",'[3]Base Dados'!O$198) ->  | M33: =IF('[3]Base Dados'!P$198="","",'[3]Base Dados'!P$198) ->  | N33: =IF('[3]Base Dados'!Q$198="","",'[3]Base Dados'!Q$198) -> 
A34: META | B34: Meta | C34: =IF('[3]Base Dados'!F$240="","",'[3]Base Dados'!F$240) -> 0.5 | D34: =IF('[3]Base Dados'!G$240="","",'[3]Base Dados'!G$240) -> 0.4 | E34: =IF('[3]Base Dados'!H$240="","",'[3]Base Dados'!H$240) -> 0.3 | F34: =IF('[3]Base Dados'!I$240="","",'[3]Base Dados'!I$240) -> 0.3 | G34: =IF('[3]Base Dados'!J$240="","",'[3]Base Dados'!J$240) -> 0.3 | H34: =IF('[3]Base Dados'!K$240="","",'[3]Base Dados'!K$240) -> 0.2 | I34: =IF('[3]Base Dados'!L$240="","",'[3]Base Dados'!L$240) -> 0.2 | J34: =IF('[3]Base Dados'!M$240="","",'[3]Base Dados'!M$240) -> 0.2 | K34: =IF('[3]Base Dados'!N$240="","",'[3]Base Dados'!N$240) -> 0.2 | L34: =IF('[3]Base Dados'!O$240="","",'[3]Base Dados'!O$240) ->  | M34: =IF('[3]Base Dados'!P$240="","",'[3]Base Dados'!P$240) ->  | N34: =IF('[3]Base Dados'!Q$240="","",'[3]Base Dados'!Q$240) -> 
A35: TAXA DE REPROGRAMAÇÃO | B35: TAXA DE REPROGRAMAÇÃO | C35: =IF('[3]Base Dados'!F$239="","",'[3]Base Dados'!F$239) -> 0.283 | D35: =IF('[3]Base Dados'!G$239="","",'[3]Base Dados'!G$239) -> 0.257 | E35: =IF('[3]Base Dados'!H$239="","",'[3]Base Dados'!H$239) -> 0.271 | F35: =IF('[3]Base Dados'!I$239="","",'[3]Base Dados'!I$239) -> 0.211 | G35: =IF('[3]Base Dados'!J$239="","",'[3]Base Dados'!J$239) -> 0.19 | H35: =IF('[3]Base Dados'!K$239="","",'[3]Base Dados'!K$239) -> 0.071 | I35: =IF('[3]Base Dados'!L$239="","",'[3]Base Dados'!L$239) -> 0.149 | J35: =IF('[3]Base Dados'!M$239="","",'[3]Base Dados'!M$239) -> 0.132 | K35: =IF('[3]Base Dados'!N$239="","",'[3]Base Dados'!N$239) -> 0.104 | L35: =IF('[3]Base Dados'!O$239="","",'[3]Base Dados'!O$239) ->  | M35: =IF('[3]Base Dados'!P$239="","",'[3]Base Dados'!P$239) ->  | N35: =IF('[3]Base Dados'!Q$239="","",'[3]Base Dados'!Q$239) -> 
A36: INDICADOR DA QUALIDADE | B36: Indicador da Qualidade
A37: META | B37: Meta | C37: =IF('[3]Base Dados'!G$76="","",'[3]Base Dados'!G$76) -> 3 | D37: =IF('[3]Base Dados'!H$76="","",'[3]Base Dados'!H$76) -> 3 | E37: =IF('[3]Base Dados'!I$76="","",'[3]Base Dados'!I$76) -> 3 | F37: =IF('[3]Base Dados'!J$76="","",'[3]Base Dados'!J$76) -> 3 | G37: =IF('[3]Base Dados'!K$76="","",'[3]Base Dados'!K$76) -> 2 | H37: =IF('[3]Base Dados'!L$76="","",'[3]Base Dados'!L$76) -> 2 | I37: =IF('[3]Base Dados'!M$76="","",'[3]Base Dados'!M$76) -> 2 | J37: =IF('[3]Base Dados'!N$76="","",'[3]Base Dados'!N$76) -> 2 | K37: =IF('[3]Base Dados'!O$76="","",'[3]Base Dados'!O$76) -> 2 | L37: =IF('[3]Base Dados'!P$76="","",'[3]Base Dados'!P$76) -> 2 | M37: =IF('[3]Base Dados'!Q$76="","",'[3]Base Dados'!Q$76) -> 2 | N37: =IF('[3]Base Dados'!R$76="","",'[3]Base Dados'!R$76) -> 2
A38: RNC DE CLIENTE | B38: RNC de cliente | C38: =IF('[3]Base Dados'!G$75="","",'[3]Base Dados'!G$75) -> 2 | D38: =IF('[3]Base Dados'!H$75="","",'[3]Base Dados'!H$75) -> 2 | E38: =IF('[3]Base Dados'!I$75="","",'[3]Base Dados'!I$75) -> 6 | F38: =IF('[3]Base Dados'!J$75="","",'[3]Base Dados'!J$75) -> 3 | G38: =IF('[3]Base Dados'!K$75="","",'[3]Base Dados'!K$75) -> 5 | H38: =IF('[3]Base Dados'!L$75="","",'[3]Base Dados'!L$75) -> 9 | I38: =IF('[3]Base Dados'!M$75="","",'[3]Base Dados'!M$75) -> 5 | J38: =IF('[3]Base Dados'!N$75="","",'[3]Base Dados'!N$75) -> 2 | K38: =IF('[3]Base Dados'!O$75="","",'[3]Base Dados'!O$75) -> 2 | L38: =IF('[3]Base Dados'!P$75="","",'[3]Base Dados'!P$75) ->  | M38: =IF('[3]Base Dados'!Q$75="","",'[3]Base Dados'!Q$75) ->  | N38: =IF('[3]Base Dados'!R$75="","",'[3]Base Dados'!R$75) -> 2
A39: META | B39: Meta | C39: =IF('[3]Base Dados'!F$55="","",'[3]Base Dados'!F$55) -> 0.015 | D39: =IF('[3]Base Dados'!G$55="","",'[3]Base Dados'!G$55) -> 0.015 | E39: =IF('[3]Base Dados'!H$55="","",'[3]Base Dados'!H$55) -> 0.015 | F39: =IF('[3]Base Dados'!I$55="","",'[3]Base Dados'!I$55) -> 0.015 | G39: =IF('[3]Base Dados'!J$55="","",'[3]Base Dados'!J$55) -> 0.005 | H39: =IF('[3]Base Dados'!K$55="","",'[3]Base Dados'!K$55) -> 0.005 | I39: =IF('[3]Base Dados'!L$55="","",'[3]Base Dados'!L$55) -> 0.005 | J39: =IF('[3]Base Dados'!M$55="","",'[3]Base Dados'!M$55) -> 0.005 | K39: =IF('[3]Base Dados'!N$55="","",'[3]Base Dados'!N$55) -> 0.005 | L39: =IF('[3]Base Dados'!O$55="","",'[3]Base Dados'!O$55) -> 0.005 | M39: =IF('[3]Base Dados'!P$55="","",'[3]Base Dados'!P$55) -> 0.005 | N39: =IF('[3]Base Dados'!Q$55="","",'[3]Base Dados'!Q$55) -> 0.005
A40: CUSTO NÃO QUALIDADE | B40: Custo não qualidade | C40: =IF('[3]Base Dados'!F$54="","",'[3]Base Dados'!F$54) -> 0.0003 | D40: =IF('[3]Base Dados'!G$54="","",'[3]Base Dados'!G$54) -> 0.0039 | E40: =IF('[3]Base Dados'!H$54="","",'[3]Base Dados'!H$54) -> 0.0043 | F40: =IF('[3]Base Dados'!I$54="","",'[3]Base Dados'!I$54) -> 0.0031 | G40: =IF('[3]Base Dados'!J$54="","",'[3]Base Dados'!J$54) -> 0.0045 | H40: =IF('[3]Base Dados'!K$54="","",'[3]Base Dados'!K$54) -> 0.0567 | I40: =IF('[3]Base Dados'!L$54="","",'[3]Base Dados'!L$54) -> 0.0291 | J40: =IF('[3]Base Dados'!M$54="","",'[3]Base Dados'!M$54) -> 0.0011 | K40: =IF('[3]Base Dados'!N$54="","",'[3]Base Dados'!N$54) -> 0.0041 | L40: =IF('[3]Base Dados'!O$54="","",'[3]Base Dados'!O$54) ->  | M40: =IF('[3]Base Dados'!P$54="","",'[3]Base Dados'!P$54) ->  | N40: =IF('[3]Base Dados'!Q$54="","",'[3]Base Dados'!Q$54) -> 
A41: META | B41: Meta | C41: =IF('[3]Base Dados'!F$59="","",'[3]Base Dados'!F$59) -> 1 | D41: =IF('[3]Base Dados'!G$59="","",'[3]Base Dados'!G$59) -> 1 | E41: =IF('[3]Base Dados'!H$59="","",'[3]Base Dados'!H$59) -> 1 | F41: =IF('[3]Base Dados'!I$59="","",'[3]Base Dados'!I$59) -> 1 | G41: =IF('[3]Base Dados'!J$59="","",'[3]Base Dados'!J$59) -> 1 | H41: =IF('[3]Base Dados'!K$59="","",'[3]Base Dados'!K$59) -> 1 | I41: =IF('[3]Base Dados'!L$59="","",'[3]Base Dados'!L$59) -> 1 | J41: =IF('[3]Base Dados'!M$59="","",'[3]Base Dados'!M$59) -> NA | K41: =IF('[3]Base Dados'!N$59="","",'[3]Base Dados'!N$59) -> NA | L41: =IF('[3]Base Dados'!O$59="","",'[3]Base Dados'!O$59) -> NA | M41: =IF('[3]Base Dados'!P$59="","",'[3]Base Dados'!P$59) -> NA | N41: =IF('[3]Base Dados'!Q$59="","",'[3]Base Dados'!Q$59) -> NA
A42: CERTIFICAÇÃO ISO 9001 | B42: Certificação ISO 9001 | C42: =IF('[3]Base Dados'!F$58="","",'[3]Base Dados'!F$58) -> 0.7 | D42: =IF('[3]Base Dados'!G$58="","",'[3]Base Dados'!G$58) -> 0.8 | E42: =IF('[3]Base Dados'!H$58="","",'[3]Base Dados'!H$58) -> 0.9 | F42: =IF('[3]Base Dados'!I$58="","",'[3]Base Dados'!I$58) -> 0.9 | G42: =IF('[3]Base Dados'!J$58="","",'[3]Base Dados'!J$58) -> 0.95 | H42: =IF('[3]Base Dados'!K$58="","",'[3]Base Dados'!K$58) -> 0.95 | I42: =IF('[3]Base Dados'!L$58="","",'[3]Base Dados'!L$58) -> 1 | J42: =IF('[3]Base Dados'!M$58="","",'[3]Base Dados'!M$58) -> NA | K42: =IF('[3]Base Dados'!N$58="","",'[3]Base Dados'!N$58) -> NA | L42: =IF('[3]Base Dados'!O$58="","",'[3]Base Dados'!O$58) -> NA | M42: =IF('[3]Base Dados'!P$58="","",'[3]Base Dados'!P$58) -> NA | N42: =IF('[3]Base Dados'!Q$58="","",'[3]Base Dados'!Q$58) -> NA
A43: INDICADOR DE DESENVOLVIMENTO | B43: Indicador de Desenvolvimento
A44: META | B44: Meta | C44: =IF('[3]Base Dados'!F$345="","",'[3]Base Dados'!F$345) -> 0.85 | D44: =IF('[3]Base Dados'!G$345="","",'[3]Base Dados'!G$345) -> 0.85 | E44: =IF('[3]Base Dados'!H$345="","",'[3]Base Dados'!H$345) -> 0.85 | F44: =IF('[3]Base Dados'!I$345="","",'[3]Base Dados'!I$345) -> 0.85 | G44: =IF('[3]Base Dados'!J$345="","",'[3]Base Dados'!J$345) -> 0.85 | H44: =IF('[3]Base Dados'!K$345="","",'[3]Base Dados'!K$345) -> 0.85 | I44: =IF('[3]Base Dados'!L$345="","",'[3]Base Dados'!L$345) -> 0.85 | J44: =IF('[3]Base Dados'!M$345="","",'[3]Base Dados'!M$345) -> 0.85 | K44: =IF('[3]Base Dados'!N$345="","",'[3]Base Dados'!N$345) -> 0.85 | L44: =IF('[3]Base Dados'!O$345="","",'[3]Base Dados'!O$345) -> 0.85 | M44: =IF('[3]Base Dados'!P$345="","",'[3]Base Dados'!P$345) -> 0.85 | N44: =IF('[3]Base Dados'!Q$345="","",'[3]Base Dados'!Q$345) -> 0.85
A45: PROJETOS ENCERRADOS X CRONOGRAMA | B45: Projetos encerrados x cronograma | C45: =IF('[3]Base Dados'!F$344="","",'[3]Base Dados'!F$344) -> 0.8181818182 | D45: =IF('[3]Base Dados'!G$344="","",'[3]Base Dados'!G$344) -> 0.9 | E45: =IF('[3]Base Dados'!H$344="","",'[3]Base Dados'!H$344) -> 1 | F45: =IF('[3]Base Dados'!I$344="","",'[3]Base Dados'!I$344) -> 1 | G45: =IF('[3]Base Dados'!J$344="","",'[3]Base Dados'!J$344) -> 0.9 | H45: =IF('[3]Base Dados'!K$344="","",'[3]Base Dados'!K$344) -> 1 | I45: =IF('[3]Base Dados'!L$344="","",'[3]Base Dados'!L$344) -> 1 | J45: =IF('[3]Base Dados'!M$344="","",'[3]Base Dados'!M$344) -> 1 | K45: =IF('[3]Base Dados'!N$344="","",'[3]Base Dados'!N$344) -> 1 | L45: =IF('[3]Base Dados'!O$344="","",'[3]Base Dados'!O$344) ->  | M45: =IF('[3]Base Dados'!P$344="","",'[3]Base Dados'!P$344) ->  | N45: =IF('[3]Base Dados'!Q$344="","",'[3]Base Dados'!Q$344) -> 
A46: META | B46: Meta | C46: =IF('[3]Base Dados'!F$355="","",'[3]Base Dados'!F$355) -> 0.85 | D46: =IF('[3]Base Dados'!G$355="","",'[3]Base Dados'!G$355) -> 0.85 | E46: =IF('[3]Base Dados'!H$355="","",'[3]Base Dados'!H$355) -> 0.85 | F46: =IF('[3]Base Dados'!I$355="","",'[3]Base Dados'!I$355) -> 0.85 | G46: =IF('[3]Base Dados'!J$355="","",'[3]Base Dados'!J$355) -> 0.85 | H46: =IF('[3]Base Dados'!K$355="","",'[3]Base Dados'!K$355) -> 0.85 | I46: =IF('[3]Base Dados'!L$355="","",'[3]Base Dados'!L$355) -> 0.85 | J46: =IF('[3]Base Dados'!M$355="","",'[3]Base Dados'!M$355) -> 0.85 | K46: =IF('[3]Base Dados'!N$355="","",'[3]Base Dados'!N$355) -> 0.85 | L46: =IF('[3]Base Dados'!O$355="","",'[3]Base Dados'!O$355) -> 0.85 | M46: =IF('[3]Base Dados'!P$355="","",'[3]Base Dados'!P$355) -> 0.85 | N46: =IF('[3]Base Dados'!Q$355="","",'[3]Base Dados'!Q$355) -> 0.85
A47: EXECUÇÃO DE TESTES | B47: Execução de testes | C47: =IF('[3]Base Dados'!F$354="","",'[3]Base Dados'!F$354) -> 0.9433962264 | D47: =IF('[3]Base Dados'!G$354="","",'[3]Base Dados'!G$354) -> 0.6111111111 | E47: =IF('[3]Base Dados'!H$354="","",'[3]Base Dados'!H$354) -> 0.362745098 | F47: =IF('[3]Base Dados'!I$354="","",'[3]Base Dados'!I$354) -> 0.4230769231 | G47: =IF('[3]Base Dados'!J$354="","",'[3]Base Dados'!J$354) -> 0.8309859155 | H47: =IF('[3]Base Dados'!K$354="","",'[3]Base Dados'!K$354) -> 0.8923076923 | I47: =IF('[3]Base Dados'!L$354="","",'[3]Base Dados'!L$354) -> 0.8732394366 | J47: =IF('[3]Base Dados'!M$354="","",'[3]Base Dados'!M$354) -> 0.8076923077 | K47: =IF('[3]Base Dados'!N$354="","",'[3]Base Dados'!N$354) -> 0.9452054795 | L47: =IF('[3]Base Dados'!O$354="","",'[3]Base Dados'!O$354) ->  | M47: =IF('[3]Base Dados'!P$354="","",'[3]Base Dados'!P$354) ->  | N47: =IF('[3]Base Dados'!Q$354="","",'[3]Base Dados'!Q$354) -> 
A48: INDICADORES DE RH | B48: Indicadores de RH
A49: META | B49: Meta | C49: =IF('[3]Base Dados'!F$294="","",'[3]Base Dados'!F$294) -> 0.02 | D49: =IF('[3]Base Dados'!G$294="","",'[3]Base Dados'!G$294) -> 0.02 | E49: =IF('[3]Base Dados'!H$294="","",'[3]Base Dados'!H$294) -> 0.02 | F49: =IF('[3]Base Dados'!I$294="","",'[3]Base Dados'!I$294) -> 0.02 | G49: =IF('[3]Base Dados'!J$294="","",'[3]Base Dados'!J$294) -> 0.02 | H49: =IF('[3]Base Dados'!K$294="","",'[3]Base Dados'!K$294) -> 0.02 | I49: =IF('[3]Base Dados'!L$294="","",'[3]Base Dados'!L$294) -> 0.02 | J49: =IF('[3]Base Dados'!M$294="","",'[3]Base Dados'!M$294) -> 0.02 | K49: =IF('[3]Base Dados'!N$294="","",'[3]Base Dados'!N$294) -> 0.02 | L49: =IF('[3]Base Dados'!O$294="","",'[3]Base Dados'!O$294) -> 0.02 | M49: =IF('[3]Base Dados'!P$294="","",'[3]Base Dados'!P$294) -> 0.02 | N49: =IF('[3]Base Dados'!Q$294="","",'[3]Base Dados'!Q$294) -> 0.02
A50: ABSENTEÍSMO | B50: Absenteísmo | C50: =IF('[3]Base Dados'!F$293="","",'[3]Base Dados'!F$293) -> 0.005575396825 | D50: =IF('[3]Base Dados'!G$293="","",'[3]Base Dados'!G$293) -> 0.008879528986 | E50: =IF('[3]Base Dados'!H$293="","",'[3]Base Dados'!H$293) -> 0.01547814553 | F50: =IF('[3]Base Dados'!I$293="","",'[3]Base Dados'!I$293) -> 0.02401652554 | G50: =IF('[3]Base Dados'!J$293="","",'[3]Base Dados'!J$293) -> 0.01626293573 | H50: =IF('[3]Base Dados'!K$293="","",'[3]Base Dados'!K$293) -> 0.01696696157 | I50: =IF('[3]Base Dados'!L$293="","",'[3]Base Dados'!L$293) -> 0.02797876712 | J50: =IF('[3]Base Dados'!M$293="","",'[3]Base Dados'!M$293) -> 0.05168266485 | K50: =IF('[3]Base Dados'!N$293="","",'[3]Base Dados'!N$293) -> 0.03765507839 | L50: =IF('[3]Base Dados'!O$293="","",'[3]Base Dados'!O$293) ->  | M50: =IF('[3]Base Dados'!P$293="","",'[3]Base Dados'!P$293) ->  | N50: =IF('[3]Base Dados'!Q$293="","",'[3]Base Dados'!Q$293) -> 
A51: META | B51: Meta | C51: =IF('[3]Base Dados'!F$340="","",'[3]Base Dados'!F$340) -> 0.5 | D51: =IF('[3]Base Dados'!G$340="","",'[3]Base Dados'!G$340) -> 0.5 | E51: =IF('[3]Base Dados'!H$340="","",'[3]Base Dados'!H$340) -> 0.5 | F51: =IF('[3]Base Dados'!I$340="","",'[3]Base Dados'!I$340) -> 0.5 | G51: =IF('[3]Base Dados'!J$340="","",'[3]Base Dados'!J$340) -> 0.5 | H51: =IF('[3]Base Dados'!K$340="","",'[3]Base Dados'!K$340) -> 0.5 | I51: =IF('[3]Base Dados'!L$340="","",'[3]Base Dados'!L$340) -> 0.5 | J51: =IF('[3]Base Dados'!M$340="","",'[3]Base Dados'!M$340) -> 0.5 | K51: =IF('[3]Base Dados'!N$340="","",'[3]Base Dados'!N$340) -> 0.5 | L51: =IF('[3]Base Dados'!O$340="","",'[3]Base Dados'!O$340) -> 0.5 | M51: =IF('[3]Base Dados'!P$340="","",'[3]Base Dados'!P$340) -> 0.5 | N51: =IF('[3]Base Dados'!Q$340="","",'[3]Base Dados'!Q$340) -> 0.5
A52: TREINAMENTO | B52: Treinamento | C52: =IF('[3]Base Dados'!F$338="","",'[3]Base Dados'!F$339) -> 2.423076923 | D52: =IF('[3]Base Dados'!G$338="","",'[3]Base Dados'!G$339) -> 0.9362535211 | E52: =IF('[3]Base Dados'!H$338="","",'[3]Base Dados'!H$339) -> 0.3920882353 | F52: =IF('[3]Base Dados'!I$338="","",'[3]Base Dados'!I$339) -> 0.005255255255 | G52: =IF('[3]Base Dados'!J$338="","",'[3]Base Dados'!J$339) -> 0.3814201183 | H52: =IF('[3]Base Dados'!K$338="","",'[3]Base Dados'!K$339) -> 0.2692307692 | I52: =IF('[3]Base Dados'!L$338="","",'[3]Base Dados'!L$339) -> 0.3625377644 | J52: =IF('[3]Base Dados'!M$338="","",'[3]Base Dados'!M$339) -> 0.2400306748 | K52: =IF('[3]Base Dados'!N$338="","",'[3]Base Dados'!N$339) -> 0.5708841463 | L52: =IF('[3]Base Dados'!O$338="","",'[3]Base Dados'!O$339) ->  | M52: =IF('[3]Base Dados'!P$338="","",'[3]Base Dados'!P$339) ->  | N52: =IF('[3]Base Dados'!Q$338="","",'[3]Base Dados'!Q$339) -> 

Sheet GRAF COMERCIAL
A1: INDICADOR | B1: JAN | C1: FEV | D1: MAR | E1: ABR | F1: MAI | G1: JUN | H1: JUL | I1: AGO | J1: SET | K1: OUT | L1: NOV | M1: DEZ
A2: SATISFAÇÃO DE CLIENTE NPS | B2: =VLOOKUP(A2,#REF!,MATCH(B1,#REF!,0),FALSE) ->  | C2: =VLOOKUP(B2,#REF!,MATCH(C1,#REF!,0),FALSE) ->  | D2: =VLOOKUP(C2,#REF!,MATCH(D1,#REF!,0),FALSE) ->  | E2: =VLOOKUP(D2,#REF!,MATCH(E1,#REF!,0),FALSE) ->  | F2: =VLOOKUP(E2,#REF!,MATCH(F1,#REF!,0),FALSE) ->  | G2: =VLOOKUP(F2,#REF!,MATCH(G1,#REF!,0),FALSE) ->  | H2: =VLOOKUP(G2,#REF!,MATCH(H1,#REF!,0),FALSE) ->  | I2: =VLOOKUP(H2,#REF!,MATCH(I1,#REF!,0),FALSE) ->  | J2: =VLOOKUP(I2,#REF!,MATCH(J1,#REF!,0),FALSE) ->  | K2: =VLOOKUP(J2,#REF!,MATCH(K1,#REF!,0),FALSE) ->  | L2: =VLOOKUP(K2,#REF!,MATCH(L1,#REF!,0),FALSE) ->  | M2: =VLOOKUP(L2,#REF!,MATCH(M1,#REF!,0),FALSE) -> 
B3: =VLOOKUP($A$2,Dados!$B$1:$N$432,MATCH(B1,Dados!$A1:$O1,0),FALSE) -> 23 | C3: =VLOOKUP($A$2,Dados!$B$1:$N$432,MATCH(C1,Dados!$B1:$O1,0),FALSE) -> 23 | D3: =VLOOKUP($A$2,Dados!$B$1:$N$432,MATCH(D1,Dados!$B1:$O1,0),FALSE) -> 23 | E3: =VLOOKUP($A$2,Dados!$B$1:$N$432,MATCH(E1,Dados!$B1:$O1,0),FALSE) -> 23 | F3: =VLOOKUP($A$2,Dados!$B$1:$N$432,MATCH(F1,Dados!$B1:$O1,0),FALSE) -> 23 | G3: =VLOOKUP($A$2,Dados!$B$1:$N$432,MATCH(G1,Dados!$B1:$O1,0),FALSE) -> 23 | H3: =VLOOKUP($A$2,Dados!$B$1:$N$432,MATCH(H1,Dados!$B1:$O1,0),FALSE) -> 57 | I3: =VLOOKUP($A$2,Dados!$B$1:$N$432,MATCH(I1,Dados!$B1:$O1,0),FALSE) -> 57 | J3: =VLOOKUP($A$2,Dados!$B$1:$N$432,MATCH(J1,Dados!$B1:$O1,0),FALSE) -> 57 | K3: =VLOOKUP($A$2,Dados!$B$1:$N$432,MATCH(K1,Dados!$B1:$O1,0),FALSE) ->  | L3: =VLOOKUP($A$2,Dados!$B$1:$N$432,MATCH(L1,Dados!$B1:$O1,0),FALSE) ->  | M3: =VLOOKUP($A$2,Dados!$B$1:$N$432,MATCH(M1,Dados!$B1:$O1,0),FALSE) -> 
A5: =IF(Painel!F10="","",IFERROR(HYPERLINK(fnLinkDinamico(Painel!F10)),Painel!F10)) -> SATISFAÇÃO DE CLIENTE NPS | E5: =IF(Painel!F11="","",IFERROR(HYPERLINK(fnLinkDinamico(Painel!F11)),Painel!F11)) -> FATURAMENTO MENSAL

Sheet listas (hidden)
B2: Ano | C2: 1 | D2: =VLOOKUP(C2,A3:B12,2,TRUE) -> 2020 | F2: Mês | G2: 9
A3: 1 | B3: 2020 | E3: 1 | F3: JAN | G3: Janeiro
A4: 2 | B4: 2021 | E4: 2 | F4: FEV | G4: Fevereiro
A5: 3 | B5: 2022 | E5: 3 | F5: MAR | G5: Março
A6: 4 | B6: 2023 | E6: 4 | F6: ABR | G6: Abril
A7: 5 | B7: 2024 | E7: 5 | F7: MAI | G7: Maio
A8: 6 | B8: 2025 | E8: 6 | F8: JUN | G8: Junho
A9: 7 | B9: 2026 | E9: 7 | F9: JUL | G9: Julho
A10: 8 | B10: 2027 | E10: 8 | F10: AGO | G10: Agosto
A11: 9 | B11: 2028 | E11: 9 | F11: SET | G11: Setembro
A12: 10 | B12: 2029 | E12: 10 | F12: OUT | G12: Outubro
E13: 11 | F13: NOV | G13: Novembro
E14: 12 | F14: DEZ | G14: Dezembro
